{"text_format":"2","workbook":"xlsx","n_sheets":20,"sheets":["Informática","Lista Equipamentos Previstos","PFS - Orçamento Base","Resumo Orç (BRANCO)","PFS- I- Orçam Base","orçam (BRANCO)","PFS_II Equipe","PFS_III _Alimentação","PFS_IV Desp Gerais","PFS_VI Despesas Fiscais","PFS_V_Det. Custos Adm","PFS_VII Det_ Enc_ Soc_","Cron Físico-Financeiro","Cron. Físico-Finan (BRANCO)","CPU VEICULO_PickUp","CPU VEICULO_Pequeno","Cálculo Desembolso","Critérios de Pagamento","Memória de cálculo","Tabela de veículos"],"not_rendered":{"charts":0,"images":35,"macros":0,"external_links":38,"defined_names":10581,"comments":1,"pivot_tables":0},"unopened":[],"bounds":{"document_bytes":16777216,"sheet_cells":100000,"run_cost":"one","rows_first":2000,"rows_last":500,"rows_between":2000,"halvings":0,"cell_chars":16384,"cell_head_chars":4096},"cells_cut":0,"cells_raw":0,"read":"whole","date_system":"1900"}

{"sheet":"Informática","index":0,"n_rows":31,"n_cols":12,"rows_kept":31,"cut":false,"hidden":true,"merged":[[26,0,26,2],[15,0,16,0],[20,0,21,0],[27,0,28,0],[15,1,16,1],[20,1,21,1],[27,1,28,1],[15,2,16,2],[20,2,21,2],[0,0,0,4],[2,0,2,4],[13,0,13,2],[14,0,14,2],[19,0,19,2]]}
["MEMÓRIA DE CÁLCULO PARA ALUGUEL DE EQUIPAMENTOS DE INFORMÁTICA"]
[null,"MÊS-BASE:","2014-11-01",{"$nulls":4},"Custo Equipamento R$","Vida Útil (Ano)","Meses p/Ano de Uso","Valor Percentual Residual","Depreciação Mensal - R$"]
[]
["Item","Preço 1 Aluguel ","Preço 2 Aluguel ","Preço 3 Aluguel ","MÉDIA",null,null,2000,4,{"$f":"12","v":12},0.1,{"$f":"(H4*(100%-K4))/(I4*J4)","v":37.5}]
["COMPUTADOR DESKTOP + SISTEMA OPERACIONAL + OFFICE",700,null,null,{"$f":"AVERAGE(B5:D5)","v":700},null,null,27300,4,12,0.5,{"$f":"(H5*(100%-K5))/(I5*J5)","v":284.38}]
["NOTEBOOK + SISTEMA OPERACIONAL + OFFICE",0,null,null,{"$f":"AVERAGE(B6:D6)","v":0}]
["Impressora A4 (Multifuncional a laser)",null,280,1200,{"$f":"AVERAGE(B7:D7)","v":740}]
["Impressora A3",null,820,800,{"$f":"AVERAGE(B8:D8)","v":810}]
[]
["Item","PREÇO DE AQUISIÇÃO 1","PREÇO DE AQUISIÇÃO 2","PREÇO DE AQUISIÇÃO 3","MÉDIA","ALUGUEL MENSAL"]
["Aplicativo Gráfico / Web - Uma única Licença",0,null,null,{"$f":"AVERAGE(B11:D11)","v":0},{"$f":"ROUND(E11/48,2)+L4","v":37.5}]
["Aplicativos de planejamento e gerenciamento (Auto CAD Ultimate e MS- PROJECT) - Uma única licença",0,null,null,{"$f":"AVERAGE(B12:D12)","v":0},{"$f":"ROUND(E12/48,2)+L5","v":284.38}]
[]
["ITENS NO ORÇAMENTO"]
["COMPUTADOR"]
["TIPO","Quantidade","Valor Médio"]
[]
["COMPUTADOR (NOTEBOOK OU DESKTOP) + SISTEMA OPERACIONAL + OFFICE",1,{"$f":"ROUND(AVERAGE(E5:E6),2)","v":350}]
[]
["IMPRESSORAS"]
["TIPO","Quantidade \n(a)","Valor \n(b)"]
[]
["Impressora A4 (Multifuncional a jato de tinta)",1,{"$f":"E7","v":740}]
["Impressora A3",1,{"$f":"E8","v":810}]
[]
[]
["APLICATIVOS"]
["TIPO","Quantidade","Valor Médio"]
[]
["Aplicativo Gráfico / Web - Uma única Licença",1,{"$f":"+F11","v":37.5}]
["Aplicativos de planejamento e gerenciamento (Auto CAD Ultimate e MS- PROJECT) - Uma única licença",1,{"$f":"+F12","v":284.38}]

{"sheet":"Lista Equipamentos Previstos","index":1,"n_rows":81,"n_cols":6,"rows_kept":81,"cut":false,"hidden":true,"merged":[[60,1,60,3]]}
{"$rows_empty":60}
[null,"Descrição",null,null,"Unid","Qtd."]
[null,"F.1 - Veículos"]
[null,null,"Sedan - 71 a 115 CV",null,"veic.",7]
[null,null,"Caminhonete Pick-Up - 140A 165 CV",null,"veic.",2]
[null,"F.2- Equipamentos"]
[null,null,"Instrumental de Topografia",null,"equip.",5]
[null,null,"GPS",null,"equip.",5]
[null,"*","Computador (Notebook ou Desktop e Software Operacional + Office)",null,"equip.",19]
[null,"*","Impressora A4",null,"equip.",5]
[null,"*","Impressora A3",null,"equip.",2]
[null,"*","Aplicativo Orçamento (licenças)",null,"equip.",6]
[null,"*","Aplicativo Gráfico / Web ",null,"equip.",1]
[null,"*","Aplicativo Gráfico para Desenho Técnico (Auto CAD Ultimate / Civil 3d)",null,"equip.",12]
[null,"*","Aplicativos de planejamento e gerenciamento (MS-Project)",null,"equip.",10]
[null,"F.3- Instalações e Mobiliário"]
[null,null,"Escritório",null,"unid.",5]
[null,null,"Alojamento p/ pessoal",null,"unid.",0]
[null,null,"Mobiliário p/ Escritório",null,"unid.",5]
[null,null,"Mobiliário de Alojamento p/ pessoal",null,"unid.",0]
[null,"F.4 - Serviços Gráficos"]
[{"$nulls":4},"unid.",1]

{"sheet":"PFS - Orçamento Base","index":2,"n_rows":33,"n_cols":9,"rows_kept":33,"cut":false,"hidden":false,"merged":[[28,0,28,6],[28,7,28,8],[29,0,29,8],[5,0,6,6],[12,7,13,8],[7,7,8,8],[7,0,8,6],[9,0,10,4],[19,7,22,8],[26,0,26,6],[26,7,26,8],[27,0,27,2],[27,5,27,6],[27,7,27,8],[23,0,23,6],[23,7,23,8],[24,0,24,6],[24,7,24,8],[25,0,25,2],[25,5,25,6],[25,7,25,8],[19,0,19,4],[19,5,19,6],[20,0,20,4],[20,5,20,6],[22,0,22,4],[22,5,22,6],[21,0,21,4],[21,5,21,6],[17,0,17,2],[17,5,17,6],[17,7,17,8],[18,0,18,6],[18,7,18,8],[15,0,15,2],[15,5,15,6],[15,7,15,8],[16,0,16,6],[16,7,16,8],[13,0,13,4],[13,5,13,6],[14,0,14,4],[14,5,14,6],[14,7,14,8],[11,0,11,4],[11,5,11,6],[11,7,11,8],[12,0,12,4],[12,5,12,6],[3,0,3,8],[5,7,5,8],[6,7,6,8],[9,5,9,8],[10,5,10,6],[10,7,10,8]]}
[]
[]
[]
["ANEXO III - ORÇAMENTO DE REFERENCIA SERVIÇOS DE APOIO À FISCALIZAÇÃO E SUPERVISÃO -SISTEMAS ADUTORES, NA REGIÃO DO SERIDÓ POTIGUAR, CORRESPONDENTES AOS TRECHOS 1N, 2N, 4N e 5N."]
[]
["PROPOSTA FINANCEIRA DE SERVIÇOS\nOrçamento de referência - NÃO DESONERADO",{"$nulls":6},"CODIGO:"]
[{"$nulls":7},"PFS-A"]
[{"$f":"'PFS- I- Orçam Base'!C8","v":"CONTRATAÇÃO DE EMPRESA PARA A PRESTAÇÃO DOS SERVIÇOS DE ENGENHARIA DE APOIO À FISCALIZAÇÃO E SUPERVISÃO DE OBRAS DE IMPLANTAÇÃO DE SISTEMAS ADUTORES, NA REGIÃO DO SERIDÓ POTIGUAR, CORRESPONDENTES AOS TRECHOS 1N, 2N, 4N e 5N."},{"$nulls":6}," DATA BASE:                          JULHO/2022 (DNIT)\nJANEIRO/2023 (SINAPI/RN) \n"]
[]
["DISCRIMINAÇÃO",{"$nulls":4},"VALOR (R$)"]
[{"$nulls":5},"PARCIAL (R$)",null,"TOTAL (R$)"]
["A - EQUIPE TÉCNICA",{"$nulls":6},{"$f":"SUM(F13:G14)","v":0}]
["A.1 - Pessoal de Nível Superior",{"$nulls":4},{"$f":"'PFS- I- Orçam Base'!L13","v":0}]
["A.2 - Pessoal de Nível Técnico ",{"$nulls":4},{"$f":"'PFS- I- Orçam Base'!L17","v":0}]
["B - ENCARGOS SOCIAIS",{"$nulls":6},{"$f":"F16","v":0}]
["Taxas",null,null,{"$f":"'PFS_VII Det_ Enc_ Soc_'!H50*100","v":70.53},"% do item \"A\"",{"$f":"TRUNC(H12*D16%,2)","v":0}]
["C - CUSTOS ADMINISTRATIVOS",{"$nulls":6},{"$f":"SUM(F18)","v":0}]
["Taxas",null,null,{"$f":"'PFS_V_Det. Custos Adm'!F36*100","v":15},"% do item \"A\"",{"$f":"TRUNC(H12*D18%,2)","v":0}]
["D - DESPESAS GERAIS",{"$nulls":6},{"$f":"SUM(F20:G23)","v":0}]
["D.1 - VEÍCULOS",{"$nulls":4},{"$f":"'PFS- I- Orçam Base'!L31","v":0}]
["D.2 - EQUIPAMENTOS",{"$nulls":4},{"$f":"'PFS- I- Orçam Base'!L34","v":0}]
["D.3 - ESCRITÓRIO",{"$nulls":4},{"$f":"'PFS- I- Orçam Base'!L37","v":0}]
["D.4 - ALIMENTAÇÃO",{"$nulls":4},{"$f":"'PFS- I- Orçam Base'!L41","v":0}]
["I - CUSTOS DIRETOS (A+B+C+D)",{"$nulls":6},{"$f":"SUM(H12,H15,H17,H19)","v":0}]
["II - REMUNERAÇÃO DA EMPRESA",{"$nulls":6},{"$f":"SUM(F26)","v":0}]
["Taxas",null,null,8,"% do item \"I\"",{"$f":"TRUNC(H24*D26%,2)","v":0}]
["III - DESPESAS FISCAIS",{"$nulls":6},{"$f":"SUM(F28)","v":0}]
["Taxas",null,null,{"$f":"'PFS_VI Despesas Fiscais'!G40","v":14.16},"% do item \"I+II\"",{"$f":"SUM(H24:I25)*D28%","v":0}]
["TOTAL DO ORÇAMENTO                       I+II+III",{"$nulls":6},{"$f":"SUM(H24,H25,H27)","v":0}]
["PRAZO = 36 meses"]
[]
[]
[{"$nulls":8},10156192.82]

{"sheet":"Resumo Orç (BRANCO)","index":3,"n_rows":30,"n_cols":8,"rows_kept":30,"cut":false,"hidden":true,"merged":[[29,0,29,8],[1,7,3,8],[1,0,3,6],[4,0,5,4],[27,0,27,1],[27,5,27,6],[27,7,27,8],[28,0,28,6],[28,7,28,8],[25,0,25,1],[25,5,25,6],[25,7,25,8],[26,0,26,4],[26,5,26,6],[26,7,26,8],[23,0,23,4],[23,5,23,6],[23,7,23,8],[24,0,24,4],[24,5,24,6],[24,7,24,8],[21,0,21,4],[21,5,21,6],[21,7,21,8],[22,0,22,4],[22,5,22,6],[22,7,22,8],[19,0,19,4],[19,5,19,6],[19,7,19,8],[20,0,20,4],[20,5,20,6],[20,7,20,8],[17,0,17,4],[17,5,17,6],[17,7,17,8],[18,0,18,4],[18,5,18,6],[18,7,18,8],[15,0,15,4],[15,5,15,6],[15,7,15,8],[16,0,16,1],[16,5,16,6],[16,7,16,8],[13,0,13,4],[13,5,13,6],[13,7,13,8],[14,0,14,1],[14,5,14,6],[14,7,14,8],[11,0,11,4],[11,5,11,6],[11,7,11,8],[12,0,12,1],[12,5,12,6],[12,7,12,8],[9,0,9,1],[9,2,9,4],[9,5,9,6],[9,7,9,8],[10,0,10,4],[10,5,10,6],[10,7,10,8],[7,0,7,1],[7,2,7,4],[7,5,7,6],[7,7,7,8],[8,0,8,1],[8,2,8,4],[8,5,8,6],[8,7,8,8],[0,0,0,8],[4,5,4,8],[5,5,5,6],[5,7,5,8],[6,0,6,4],[6,5,6,6],[6,7,6,8]]}
["RESUMO DE ORÇAMENTO REFERENCIAL SERVIÇOS DE CONSULTORIA"]
["CONTRATAÇÃO DE EMPRESA ESPECIALIZADA PARA PRESTAÇÃO DOS SERVIÇOS DE SUPERVISÃO DA ELABORAÇÃO DOS PROJETOS BÁSICO E EXECUTIVO E DA EXECUÇÃO DAS OBRAS DE DUAS PONTES NA BR-425/RO (RIO ARARAS E RIO RIBEIRÃO)\nRodovia: BR - 425/RO\nTrecho: Entr. BR-364(B) – Fronteira Brasil/Bolívia (Guajará Mirim/RO)\nSubtrecho:  Entr. BR-364(B) – Fronteira Brasil/Bolívia (Guajará Mirim/RO\nSegmento:  km 51,70 - Ponte sobre o Rio Araras \nkm 79,70 - Ponte sobre o Rio Ribeirão\nExtensão:  105,00 m - Ponte sobre o Rio Araras \n110,00 m - Ponte sobre o Rio Ribeirão\n\n\n",{"$nulls":6}," DATA BASE:                          JULHO/2020"]
[]
[]
["DISCRIMINAÇÃO",{"$nulls":4},"VALOR (R$)"]
[{"$nulls":5},"PARCIAL (R$)",null,"TOTAL (R$)"]
["A - EQUIPE TÉCNICA",{"$nulls":6},{"$f":"SUM(F8:G10)","v":0}]
[null,null,"A.1 - Pessoal de Nível Superior",null,null,0]
[null,null,"A.2 - Pessoal de Nível Técnico ",null,null,0]
[null,null,"A.3 - Pessoal Nível Auxiliar",null,null,0]
["B - CONSULTORIA ESPECIAL",{"$nulls":4},0,null,{"$f":"SUM(F11)","v":0}]
["C - ENCARGOS SOCIAIS",{"$nulls":6},{"$f":"F13","v":0}]
[null,null,"Taxas",84.04,"% do item \"A\"",{"$f":"H7*D13%","v":0}]
["D- ENCARGOS SOCIAIS - CONSULTOR ESPECIAL - PJ ",{"$nulls":6},{"$f":"SUM(F15)","v":0}]
[null,null,"Taxas",20,"% do item \"B\"",{"$f":"H11*D15%","v":0}]
["E - CUSTOS ADMINISTRATIVOS",{"$nulls":6},{"$f":"SUM(F17)","v":0}]
[null,null,"Taxas",30,"% do item \"A\"",{"$f":"TRUNC(H7*D17%,2)","v":0}]
["F - DESPESAS GERAIS",{"$nulls":6},{"$f":"SUM(F19:G23)","v":0}]
["F.1 - VEÍCULOS",{"$nulls":4},0]
["F.2 - EQUIPAMENTOS",{"$nulls":4},0]
["F.3 - IMOVÉIS",{"$nulls":4},0]
["F.4 - MOBILIÁRIO",{"$nulls":4},0]
["F.5 - ENSAIOS ESPECIAIS",{"$nulls":4},0]
["I - CUSTOS DIRETOS (A+B+C+D+E+F)",{"$nulls":6},{"$f":"TRUNC(SUM(H7,H11,H12,H14,H16,H18),2)","v":0}]
["II - REMUNERAÇÃO DA EMPRESA",{"$nulls":6},{"$f":"SUM(F26)","v":0}]
[null,null,"Taxas",12,"% do item \"I\"",{"$f":"(H24*D26%)","v":0}]
["III - DESPESAS FISCAIS",{"$nulls":6},{"$f":"SUM(F28)","v":0}]
[null,null,"Taxas",16.62,"% do item \"I+II\"",{"$f":"SUM(H24:I25)*D28%","v":0}]
["TOTAL DO ORÇAMENTO                       I+II+III",{"$nulls":6},{"$f":"SUM(H24,H25,H27)","v":0}]
["PRAZO = 720 .d.c "]

{"sheet":"PFS- I- Orçam Base","index":4,"n_rows":58,"n_cols":17,"rows_kept":58,"cut":false,"hidden":false,"merged":[[5,2,6,10],[10,2,11,3],[7,2,8,10],[41,2,41,4],[29,2,29,11],[30,2,30,10],[31,2,31,4],[32,2,32,4],[27,2,27,3],[27,4,27,5],[27,6,27,10],[16,2,16,10],[9,2,9,3],[11,6,11,10],[12,2,12,10],[14,2,14,3],[23,2,23,3],[17,2,17,3],[7,11,8,12],[46,4,46,5],[46,6,46,10],[10,4,11,4],[10,5,11,5],[13,2,13,3],[28,4,28,5],[28,6,28,10],[45,6,45,11],[37,2,37,4],[43,6,43,10],[40,2,40,10],[43,2,43,5],[18,2,18,3],[47,4,47,5],[47,6,47,10],[45,4,45,5],[47,2,47,3],[46,2,46,3],[48,13,49,13],[56,17,57,18],[51,2,52,8],[51,9,52,10],[49,2,49,11],[50,2,50,10],[48,2,48,3],[48,4,48,5],[48,6,48,10],[51,11,52,11],[15,2,15,3],[25,2,25,3],[26,2,26,3],[44,2,44,11],[33,2,33,10],[34,2,34,4],[36,2,36,10],[38,2,38,4],[42,2,42,5],[42,6,42,10],[19,2,19,3],[20,2,20,3],[21,2,21,3],[22,2,22,3],[24,2,24,3],[28,2,28,3]]}
[]
[{"$nulls":13},36]
[]
[]
[]
[null,null,"PROPOSTA FINANCEIRA DE SERVIÇOS\nOrçamento de referência - NÃO DESONERADO",{"$nulls":8},"CODIGO:"]
[null,"\n",{"$nulls":9},"PFS-I"]
[null,null,"CONTRATAÇÃO DE EMPRESA PARA A PRESTAÇÃO DOS SERVIÇOS DE ENGENHARIA DE APOIO À FISCALIZAÇÃO E SUPERVISÃO DE OBRAS DE IMPLANTAÇÃO DE SISTEMAS ADUTORES, NA REGIÃO DO SERIDÓ POTIGUAR, CORRESPONDENTES AOS TRECHOS 1N, 2N, 4N e 5N.",{"$nulls":8}," DATA BASE:                          JULHO/2022 (DNIT)\nJANEIRO/2023 (SINAPI/RN) \n"]
[]
[null,null,"Descrição",null,"Código","Unid","Qtd.","Participação \nMensal Média","Prazo \n(meses)","Qtde \nTotal Mês","Preço \nUnitário \n(R$/Mês)","Preço Total\n(R$)"]
[null,null,"Pessoal",null,"Nível Funcional",null,"a","b","c","d=a*b*c","e","f=d*e"]
[{"$nulls":6},"SUBTOTAL A = (A1+A2)",{"$nulls":4},{"$f":"L13+L17","v":0}]
[null,"Código","A.1 - NÍVEL SUPERIOR",{"$nulls":8},{"$f":"SUM(L14:L16)","v":0}]
[null,"DNIT/P8066","Engenheiro - Profissional Pleno",null,"P2","mês",1,1,{"$f":"$N$2","v":36},{"$f":"G14*H14*I14","v":36},null,{"$f":"TRUNC(J14*K14,2)","v":0}]
[null,"DNIT/P8065","Engenheiro - Profissional Júnior",null,"P3","mês",2,1,{"$f":"$N$2","v":36},{"$f":"G15*H15*I15","v":72},null,{"$f":"TRUNC(J15*K15,2)","v":0}]
[null,"DNIT/P8080","Geólogo - Profissional Júnior",null,"P3","mês",1,1,{"$f":"$N$2","v":36},{"$f":"G16*H16*I16","v":36},null,{"$f":"TRUNC(J16*K16,2)","v":0}]
[null,null,"A.2 - NÍVEL TÉCNICO",{"$nulls":8},{"$f":"SUM(L18:L27)","v":0}]
[null,"DNIT/P8026","Auxiliar de Escritório",null,"A2","mês",1,1,{"$f":"$N$2","v":36},{"$f":"G18*H18*I18","v":36},null,{"$f":"TRUNC(J18*K18,2)","v":0}]
[null,"DNIT/P8147",{"$f":"'[35]Tconsul Codevasf'!C15","v":"Técnico - Profissional Especial"},null,"T0","mês",1,1,36,36,null,0]
[null,"DNIT/P8143","Técnico Auxiliar (Campo)",null,"T3","mês",3,1,36,108,null,0]
[null,"DNIT/P8163","Topógrafo",null,"T2","mês",1,1,36,36,null,0]
[null,"SINAPI/40946","Técnico de Edificações",null,"T2","mês",2,1,36,72,null,0]
[null,null,"Eletrotécnico",null,"T2","mês",null,1,36,0,{"$f":"4673.69/1.469","v":3181.55},0]
[null,null,"Técnico Mecânico",null,"T2","mês",null,1,36,0,{"$f":"4673.69/1.469","v":3181.55},0]
[null,"DNIT/P8028","Servente Contínuo (Auxiliar de Topografia)",null,"T4","mês",1,1,36,36,null,0]
[null,"DNIT/P8098","Técnico Auxiliar (Laboratorista)",null,"T3","mês",1,1,36,36,null,0]
[null,"DNIT/P8027","Servente Contínuo (Auxiliar de Laboratório)",null,"T4","mês",1,1,36,36,null,0]
[null,null,"B - Encargos Sociais (_% de A)",null,{"$f":"'PFS_VII Det_ Enc_ Soc_'!H50","v":0.70530000000000004},null,"Subtotal B",{"$nulls":4},{"$f":"TRUNC(L12*$E$28,2)","v":0}]
[null,null,"C - Custos Administrativos (_% de A)",null,{"$f":"'PFS_V_Det. Custos Adm'!F36","v":0.15},null,"Subtotal C",{"$nulls":4},{"$f":"TRUNC(L12*E29,2)","v":0}]
[null,null,"D - Despesas Gerais"]
[null,null,"D.1 - Veículos",{"$nulls":8},{"$f":"SUM(L32:L33)","v":0}]
[null,"CPU","PICK-UP - CD 4X4 Diesel ",null,null,"veic.",4,1,{"$f":"$N$2","v":36},{"$f":"G32*H32*I32","v":144},null,{"$f":"TRUNC(J32*K32,2)","v":0}]
[null,"CPU","Veículo leve - 71 a 115 CV",null,null,"veic.",4,1,{"$f":"$N$2","v":36},{"$f":"G33*H33*I33","v":144},null,{"$f":"TRUNC(J33*K33,2)","v":0}]
[null,null,"D.2 - Equipamentos",{"$nulls":8},{"$f":"SUM(L35:L36)","v":0}]
[null,"CPU","Instrumental de Topografia, Solos e Concreto",null,null,"equip.",{"$f":"G21","v":1},1,{"$f":"$N$2","v":36},{"$f":"G35*H35*I35","v":36},null,{"$f":"TRUNC(J35*K35,2)","v":0}]
[null,"Cotação","Equipamento de topografia - drone para mapeamento",null,null,"equip.",1,1,1,{"$f":"G36*H36*I36","v":1},null,{"$f":"TRUNC(J36*K36,2)","v":0}]
[null,null,"D.3 - Escritorio",{"$nulls":8},{"$f":"SUM(L38:L40)","v":0}]
[null,"DNIT/B8952","Aluguel de Escritório (Mínimo de 200 m²)",null,null,"unid.",1,1,{"$f":"$N$2","v":36},{"$f":"G38*H38*I38","v":36},null,{"$f":"TRUNC(J38*K38,2)","v":0}]
[null,"DNIT/B8953","Cesta de Mobiliário de Escritório",null,null,"unid.",1,1,36,36,null,0]
[null,"DNIT/B8959","Custos Diversos de Escritório",null,null,"unid.",1,1,36,{"$f":"G40*H40*I40","v":36},null,0]
[null,null,"D.4 -Alimentação",{"$nulls":8},{"$f":"SUM(L42)","v":0}]
[null,null,"Alimentação (almoço) \n(Total funcionários = 15 )",null,null,"mês",1,1,{"$f":"$N$2","v":36},{"$f":"G42*H42*I42","v":36},null,{"$f":"TRUNC(J42*K42,2)","v":0}]
[{"$nulls":6},"Subtotal D",{"$nulls":4},{"$f":"SUM(L31,L34,L37,L41)","v":0}]
[null,null,"TOTAL DO ITEM I - CUSTOS DIRETOS",null,null,null,"( A + B + C+ D )",{"$nulls":4},{"$f":"SUM(L12,L28,L29,L43)","v":0}]
[]
[null,null,"II - CUSTOS INDIRETOS"]
[null,null,"II.1 - Remuneração da Empresa (_% de I)",null,{"$f":"'PFS - Orçamento Base'!D26/100","v":0.08},null,"Subtotal II.1",{"$nulls":4},{"$f":"TRUNC(L44*E47,2)","v":0}]
[null,null,"II.2 - Despesas Fiscais [(_% de I + II.1)]",null,{"$f":"'PFS_VI Despesas Fiscais'!G40/100","v":0.1416},null,"Subtotal II.2",{"$nulls":4},{"$f":"SUM(L44,L47)*E48","v":0}]
[null,null,"TOTAL DO ITEM II - CUSTOS INDIRETOS",null,"( II.1 + II.2 )",{"$nulls":6},{"$f":"SUM(L47:L48)","v":0}]
[]
[null,null,"TOTAL GERAL ( I + II )",{"$nulls":8},{"$f":"SUM(L44,L49)","v":0}]
[null,null,"Limites Máximos Admissíveis:                                                                                                      B = 70,53%    D= 15,00%    E= 30,34%     II.1 = 8,00%     II.2 = 20,34%\nTempo Estimado de Realização dos Serviços                                                                          36 meses ",{"$nulls":6},"CUSTO ESTIMADO MENSAL",null,{"$f":"L51/N2","v":0}]
[]
[]
[]
[{"$nulls":13},"Valor estimado do orçamento para obra",null,null,327423283.56]
[{"$nulls":13},"Valor estimado - Supervisão (36 meses)",null,null,{"$f":"L51","v":0}]
[{"$nulls":13},"% Supervisão / Obra",null,null,{"$f":"Q57/Q56","v":0}]

{"sheet":"orçam (BRANCO)","index":5,"n_rows":95,"n_cols":12,"rows_kept":95,"cut":false,"hidden":true,"merged":[[6,2,7,11],[4,2,5,11],[84,10,88,11],[80,10,83,11],[68,13,69,14],[63,2,64,8],[63,9,64,10],[13,2,14,3],[10,2,11,10],[85,6,85,9],[86,6,86,9],[87,6,87,9],[88,6,88,9],[72,3,72,11],[73,3,73,11],[77,2,77,3],[77,6,77,9],[77,10,77,11],[78,6,78,9],[78,10,78,11],[79,6,79,9],[79,10,79,11],[59,2,59,3],[59,4,59,5],[94,6,94,9],[94,10,94,11],[97,3,97,9],[97,10,97,11],[13,4,14,4],[13,5,14,5],[31,5,33,5],[10,11,11,11],[63,11,64,11],[89,6,89,9],[89,10,89,11],[90,6,90,9],[90,10,90,11],[91,6,91,9],[91,10,91,11],[92,6,92,9],[92,10,92,11],[93,6,93,9],[93,10,93,11],[80,6,80,9],[81,6,81,9],[82,6,82,9],[83,6,83,9],[84,6,84,9],[59,6,59,10],[60,2,60,3],[60,4,60,5],[60,6,60,10],[61,2,61,11],[62,2,62,10],[71,3,71,11],[53,2,53,4],[54,2,54,5],[54,6,54,10],[55,2,55,5],[55,6,55,10],[56,2,56,11],[57,4,57,5],[57,6,57,11],[58,2,58,3],[58,4,58,5],[58,6,58,10],[44,2,44,4],[45,2,45,10],[46,2,46,4],[47,2,47,4],[48,2,48,4],[49,2,49,10],[50,2,50,4],[51,2,51,4],[52,2,52,10],[35,2,35,10],[36,2,36,4],[37,2,37,4],[38,2,38,4],[39,2,39,10],[40,2,40,4],[41,2,41,4],[42,2,42,4],[43,2,43,4],[29,2,29,10],[30,2,30,3],[31,2,31,3],[31,6,31,10],[32,2,32,3],[32,6,32,10],[33,2,33,3],[33,6,33,10],[34,2,34,11],[20,2,20,3],[21,2,21,3],[22,2,22,3],[23,2,23,3],[24,2,24,3],[25,2,25,10],[26,2,26,3],[27,2,27,3],[28,2,28,3],[8,2,8,11],[9,2,9,11],[12,2,12,3],[14,6,14,10],[15,2,15,10],[16,2,16,3],[17,2,17,3],[18,2,18,3],[19,2,19,10]]}
[]
[]
[]
[]
[null,null,"DEPARTAMENTO NACIONAL DE INFRAESTRUTURA DE TRANSPORTES"]
[]
[null,null,"CONTRATAÇÃO DE EMPRESA ESPECIALIZADA PARA PRESTAÇÃO DOS SERVIÇOS DE SUPERVISÃO DA ELABORAÇÃO DOS PROJETOS BÁSICO E EXECUTIVO E DA EXECUÇÃO DAS OBRAS DE DUAS PONTES NA BR-425/RO (RIO ARARAS E RIO RIBEIRÃO).\nESTADO: RONDÔNIA\nLOTE: ÚNICO                                                                                                                                                                                                                      Prazo: 720 d.c"]
[]
["ANEXO II",null,"ANEXO I"]
[null,"\n","ORÇAMENTO REFERENCIAL"]
[{"$nulls":11},"DATA BASE:\njul/2020"]
[]
[null,null,"Descrição",null,"Código","Unid","Qtd.","Participação \nMensal Média","Prazo \n(meses)","Qtde \nTotal Mês","Preço \nUnitário \n(R$/Mês)","Preço Total\n(R$)"]
[null,null,"Pessoal",null,"Nível Funcional",null,"a","b","c","d=a*b*c","e","f=d*e"]
[{"$nulls":6},"SUBTOTAL A = (A1+A2+A3)",{"$nulls":4},0]
[null,null,"A.1 - NÍVEL SUPERIOR",{"$nulls":8},{"$f":"SUM(L17:L19)","v":0}]
[null,null,"Engenheiro Sênior/Obras de Arte Especiais",null,"P0","mês",1,1,24,{"$f":"G17*H17*I17","v":24}]
[null,null,"Engenheiro Ambiental",null,"P4","mês",1,1,24,24]
[null,null,"Arqueólogo",null,"P4","mês",1,1,24,24]
[null,null,"A.2 - NÍVEL TÉCNICO",{"$nulls":8},{"$f":"SUM(L21:L25)","v":0}]
[null,null,"Técnico Pleno (Auxiliar de Engenheiro / Inspetor de Campo) - Assessoria na Análise de Projetos e acompanhamento de obras",null,"T2","mês",1,1,24,{"$f":"G21*H21*I21","v":24}]
[null,null,"Técnico Pleno (Topógrafo)",null,"T2","mês",1,1,24,{"$f":"G22*H22*I22","v":24}]
[null,null,"Técnico Auxiliar (Auxiliar de Topografia)",null,"T4","mês",1,1,24,{"$f":"G23*H23*I23","v":24}]
[null,null,"Técnico Pleno (Laboratorista)",null,"T2","mês",1,1,24,{"$f":"G24*H24*I24","v":24}]
[null,null,"Técnico Auxiliar (Auxiliar de Laboratório)",null,"T4","mês",2,1,24,{"$f":"G25*H25*I25","v":48}]
[null,null,"A.3 - NÍVEL AUXILIAR",{"$nulls":8},{"$f":"SUM(L27:L29)","v":0}]
[null,null,"Secretária",null,"A1","mês",1,1,24,{"$f":"G27*H27*I27","v":24}]
[null,null,"Auxiliar de Escritório (Operador de Microcomputador)",null,"A2","mês",0,1,24,{"$f":"G28*H28*I28","v":0}]
[null,null,"Motorista",null,"A2","mês",null,1,24,{"$f":"G29*H29*I29","v":0}]
[null,null,"B - CONSULTORIA ESPECIAL",{"$nulls":8},{"$f":"SUM(L31:L31)","v":0}]
[null,null,"Consultor Especial",null,"CM","mês",0,0.15,24,{"$f":"G31*H31*I31","v":0}]
[null,null,"C - Encargos Sociais (_% de A)",null,0.84040000000000004,null,"Subtotal C",{"$nulls":4},{"$f":"TRUNC(L15*$E$32,2)","v":0}]
[null,null,"D - E. Sociais - Consultor Especial - PJ (_% de B)",null,0.2,null,"Subtotal D",{"$nulls":4},{"$f":"TRUNC(L30*E33,2)","v":0}]
[null,null,"E - Custos Administrativos (_% de A)",null,0.3,null,"Subtotal E",{"$nulls":4},{"$f":"TRUNC(L15*E34,2)","v":0}]
[null,null,"F- Despesas Gerais"]
[null,null,"F.1 - Veículos",{"$nulls":8},{"$f":"SUM(L37:L39)","v":0}]
[null,null,"Sedan - 71 a 115 CV",null,null,"veic.",2,1,24,{"$f":"G37*H37*I37","v":48}]
[null,null,"Caminhonete - 71 a 115cv",null,null,"veic.",1,1,24,{"$f":"G38*H38*I38","v":24}]
[null,null,"Caminhão para Viga Benkelman",null,null,"veic.",1,1,1,{"$f":"G39*H39*I39","v":1}]
[null,null,"F.2- Equipamentos",{"$nulls":8},{"$f":"SUM(L41:L45)","v":0}]
[null,null,"Instrumental de Topografia",null,null,"equip.",1,1,24,{"$f":"G41*H41*I41","v":24}]
[null,null,"Laboratório de Concreto",null,null,"equip.",1,1,20,{"$f":"G42*H42*I42","v":20}]
[null,null,"Laboratório de Solos",null,null,"equip.",1,1,2,{"$f":"G43*H43*I43","v":2}]
[null,null,"Laboratório de Betume",null,null,"equip.",1,1,1,{"$f":"G44*H44*I44","v":1}]
[null,null,"Viga Benkelman",null,null,"equip.",1,1,1,{"$f":"G45*H45*I45","v":1}]
[null,null,"F.3- Imóveis",{"$nulls":8},{"$f":"SUM(L47:L49)","v":0}]
[null,null,"Escritório",null,null,"unid.",1,1,24,{"$f":"G47*H47*I47","v":24}]
[null,null,"Casa para Engenheiro",null,null,"unid.",1,1,24,{"$f":"G48*H48*I48","v":24}]
[null,null,"Alojamento para Pessoal",null,null,"unid.",1,1,24,{"$f":"G49*H49*I49","v":24}]
[null,null,"F.4- Mobiliário",{"$nulls":8},{"$f":"SUM(L51:L52)","v":0}]
[null,null,"Mobiliário de Escritório",null,null,"unid.",1,1,24,{"$f":"G51*H51*I51","v":24}]
[null,null,"Mobiliário de Alojamento p/ Pessoal",null,null,"unid.",1,1,24,{"$f":"G52*H52*I52","v":24}]
[null,null,"F.5 - Ensaios Especiais",{"$nulls":8},{"$f":"SUM(L54)","v":0}]
[null,null,"Ensaios Especiais",null,null,"UD",0,1,1,{"$f":"G54*H54*I54","v":0},{"$f":"TRUNC(L15*1%,2)","v":0},{"$f":"TRUNC(J54*K54,2)","v":0}]
[{"$nulls":6},"Subtotal F",{"$nulls":4},{"$f":"SUM(L36,L40,L46,L50,L53)","v":0}]
[null,null,"TOTAL DO ITEM I - CUSTOS DIRETOS",null,null,null,"( A + B + C+ D + E + F )",{"$nulls":4},{"$f":"SUM(L15,L30,L32,L33,L34,L55)","v":0}]
[]
[null,null,"II - CUSTOS INDIRETOS"]
[null,null,"II.1 - Remuneração da Empresa (_% de I)",null,0.12,null,"Subtotal II.1",{"$nulls":4},{"$f":"TRUNC(L56*E59,2)","v":0}]
[null,null,"II.2 - Despesas Fiscais [(_% de I + II.1)]",null,0.16619999999999999,null,"Subtotal II.2",{"$nulls":4},{"$f":"SUM(L56,L59)*E60","v":0}]
[null,null,"TOTAL DO ITEM II - CUSTOS INDIRETOS",null,"( II.1 + II.2 )",{"$nulls":6},{"$f":"SUM(L59:L60)","v":0}]
[]
[null,null,"TOTAL GERAL ( I + II )",{"$nulls":8},{"$f":"SUM(L56,L61)","v":0}]
[null,null,"Limites Máximos Admissíveis:                                                                                                      C = 84,04%    D= 20,00%    E= 30,00%     II.1 = 12,00%     II.2 = 16,62%\nTempo Estimado de Realização dos Serviços                                                                             720.d.c ",{"$nulls":6},"CUSTO ESTIMADO MENSAL",null,{"$f":"L63/J17","v":0}]
[]
[]
[]
[]
[]
[]
[null,null,null,"VALORES REFERENCIAIS:"]
[null,null,null,"Tabela de Consultoria do DNIT, instituída por meio da Instrução de Serviço DG nº 03/2012."]
[null,null,null,"Percentuais de encargos sociais e custos administrativos, em conformidade com recomendação constante do Ofício nº 535/2011-TCU/SECOB-1"]
[null,null,null,"Os valores referenciais para veículos envolvem aluguel e combustível."]
[]
[]
[]
[null,null,"CARGO",null,"NIVEL FUNCIONAL",null,"QUALIFICAÇÃO EXIGIDA",null,null,null,"FUNÇÃO CONTEMPLADA"]
[null,null,null,"CONSULTOR ESPECIAL","CM",null,"Engenheiro ou Profissional com, no mínimo, Doutorado na área de interesse, e/ou Experiência Profissional >= 15 anos",null,null,null,"Especialista em Engenharia (Todas)\nEspecialista em Arquitetura\nEspecialista na Área Social\nEspecialista na Área Ambiental\nEspecialista na Área Financeira\nEspecialista na Área Administrativa\nEspecialista na Área Contábil\nEspecialista na Área Economia"]
[null,null,null,"COORDENADOR","P0",null,"Engenheiro ou Profissional - Experiência Profissional >= 10 anos",null,null,null,"Coordenador Geral\nCoordenador de Gerenciamento.\nCoordenador de Fiscalização\nCoordenador de Planejamento\nAdministrador de Contratos\nCoordenador de Apoio Assistencial"]
[null,null,null,"ENGENHEIRO/PROFISSIONAL SÊNIOR ","P1",null,"Experiência Profissional >= 8 anos",null,null,null,"Profissional em :\nEngenharia (todas)\nArquitetura e Urbanismo\nProfissional ärea Social (serviço social, ciências sociais, Sociólogo, etc)\nProfissional Área Ambiental\nContador\nAdministrador\nEconomista\nÁrea de Comunicação Social (Jornalista, Assessor de Comunicação, etc.)\nProfissionais ärea de T.I (Programador, Analista de Sistema)\nGeologia\nBiologia\nÁrea Jurídica (Advogado, Assessor jurídico, etc)\nTopografia"]
[null,null,null,"ENGENHEIRO/PROFISSIONAL PLENO","P2",null,"Experiência Profissional >= 5 anos"]
[null,null,null,"ENGENHEIRO/PROFISSIONAL JÚNIOR","P3",null,"Experiência Profissional >= 2 anos"]
[null,null,null,"ENGENHEIRO/PROFISSIONAL AUXILIAR ","P4",null,"Formação 3º Grau"]
[null,null,null,"TÉCNICO SÊNIOR","T2",null,"2º Grau Completo - Experiência Profissional >= 10 anos",null,null,null,"Auxiliar de Engenharia\nInspetor de Campo\nFiscal de Campo\nTécnico em Edificações\nTécnico em estradas\nTécnico em Segurança do Trabalho\nTécnico em Contabilidade\nTécnico em Medicina do Trabalho\nLaboratorista (Chefe, Auxiliar)\nTopógrafo (Chefe, Auxiliar)\nTelefonista\nEscriturário\nAuxiliares (Escritório, Administrativo, etc)"]
[null,null,null,"TÉCNICO SÊNIOR","T1",null,"2º Grau Completo - Experiência Profissional >= 8 anos"]
[null,null,null,"TÉCNICO PLENO","T2",null,"2º Grau Completo - Experiência Profissional >= 5 anos"]
[null,null,null," TÉCNICO JÚNIOR ","T3",null,"2º Grau Completo - Experiência Profissional >= 2 anos"]
[null,null,null,"TÉCNICO AUXILIAR ","T4",null,"Formação - 2º Grau Completo"]
[null,null,null,"TÉCNICO","T5",null,"Formação Técnica e/ou Experiência Profissional",null,null,null,"Calculista\nDesenhista / Cadista\nOperador de Computador"]
[null,null,null,"CHEFE DE ESCRITÓRIO ","A0",null,"2º Grau Completo - Experiência Profissional >= 5 anos",null,null,null,"Chefe de Escritório\nSecretária Executiva"]
[null,null,null,"SECRETÁRIA (O)","A1",null,"Experiência Profissional",null,null,null,"Secretária"]
[null,null,null,"DATILÓGRAFO/MOTORISTA","A2",null,"Experiência Profissional",null,null,null,"motorista"]
[null,null,null,"SERVENTES / CONTÍNUOS","A3",null,"Experiência Profissional",null,null,null,"Aux. De Serviços Gerais\nCopeiro\nZelador"]
[null,null,null,"VIGIAS","A4",null,"Experiência Profissional",null,null,null,"Vigias"]

{"sheet":"PFS_II Equipe","index":6,"n_rows":31,"n_cols":13,"rows_kept":31,"cut":false,"hidden":false,"merged":[[3,0,4,8],[5,0,5,8],[7,4,7,8],[8,4,8,8],[9,0,11,0],[9,1,11,1]]}
[]
[]
[]
["SALÁRIOS E ENCARGOS DA EQUIPE",{"$nulls":8},"CODIGO:"]
[{"$nulls":9},"PFS-II",null,null,{"$f":"1000000","v":1000000}]
[]
[]
[{"$f":"[36]PFS!A8","v":"NOME DA CONSULTORA:"},null,null,null,"OBJETO:",{"$nulls":4},"EDITAL:"]
[]
["CATEGORIA FUNCIONAL","CATEGORIA","TOTAL DE","TOTAL DE","SALÁRIO","TOTAL CUSTO","TOTAL CUSTO","TOTAL CUSTO","TOTAL CUSTO","TAXA DE",null,null,{"$f":"32957.95/0.15","v":219719.66666666701}]
[null,null,"HOMENS","MESES","MENSAL  (R$)","SALÁRIOS DE "," SALÁRIOS","E. SOCIAIS DE ","E. SOCIAIS DE ","ENCARGOS SOCIAIS"]
[{"$nulls":5},"MENSAL","CONTRATO","CONTRATO","CONTRATO","%"]
[{"$f":"'PFS- I- Orçam Base'!C14","v":"Engenheiro - Profissional Pleno"},{"$f":"'PFS- I- Orçam Base'!E14","v":"P2"},{"$f":"'PFS- I- Orçam Base'!G14","v":1},{"$f":"'PFS- I- Orçam Base'!$N$2","v":36},{"$f":"'PFS- I- Orçam Base'!K14","v":0},{"$f":"ROUND(E13*C13,2)","v":0},{"$f":"D13*F13","v":0},{"$f":"ROUND((F13*J13),2)","v":0},{"$f":"G13*J13","v":0},{"$f":"'PFS- I- Orçam Base'!$E$28","v":0.70530000000000004}]
[{"$f":"'PFS- I- Orçam Base'!C15","v":"Engenheiro - Profissional Júnior"},{"$f":"'PFS- I- Orçam Base'!E15","v":"P3"},{"$f":"'PFS- I- Orçam Base'!G15","v":2},{"$f":"'PFS- I- Orçam Base'!$N$2","v":36},{"$f":"'PFS- I- Orçam Base'!K15","v":0},{"$f":"ROUND(E14*C14,2)","v":0},{"$f":"D14*F14","v":0},{"$f":"ROUND((F14*J14),2)","v":0},{"$f":"G14*J14","v":0},{"$f":"'PFS- I- Orçam Base'!$E$28","v":0.70530000000000004},null,null,{"$f":"62352034/630000","v":98.971482539682498}]
[{"$f":"'PFS- I- Orçam Base'!C16","v":"Geólogo - Profissional Júnior"},{"$f":"'PFS- I- Orçam Base'!E16","v":"P3"},{"$f":"'PFS- I- Orçam Base'!G16","v":1},{"$f":"'PFS- I- Orçam Base'!$N$2","v":36},{"$f":"'PFS- I- Orçam Base'!K16","v":0},{"$f":"ROUND(E15*C15,2)","v":0},{"$f":"D15*F15","v":0},{"$f":"ROUND((F15*J15),2)","v":0},{"$f":"G15*J15","v":0},{"$f":"'PFS- I- Orçam Base'!$E$28","v":0.70530000000000004}]
["Auxiliar de Escritório","A2",{"$f":"'PFS- I- Orçam Base'!G18","v":1},{"$f":"'PFS- I- Orçam Base'!$N$2","v":36},{"$f":"'PFS- I- Orçam Base'!K18","v":0},{"$f":"ROUND(E16*C16,2)","v":0},0,0,{"$f":"G16*J16","v":0},{"$f":"'PFS- I- Orçam Base'!$E$28","v":0.70530000000000004}]
[{"$f":"'PFS- I- Orçam Base'!C19","v":"Técnico - Profissional Especial"},{"$f":"'PFS- I- Orçam Base'!E19","v":"T0"},{"$f":"'PFS- I- Orçam Base'!G19","v":1},{"$f":"'PFS- I- Orçam Base'!$N$2","v":36},{"$f":"'PFS- I- Orçam Base'!K19","v":0},{"$f":"ROUND(E17*C17,2)","v":0},0,0,{"$f":"G17*J17","v":0},{"$f":"'PFS- I- Orçam Base'!$E$28","v":0.70530000000000004}]
[{"$f":"'PFS- I- Orçam Base'!C20","v":"Técnico Auxiliar (Campo)"},{"$f":"'PFS- I- Orçam Base'!E20","v":"T3"},{"$f":"'PFS- I- Orçam Base'!G20","v":3},{"$f":"'PFS- I- Orçam Base'!$N$2","v":36},{"$f":"'PFS- I- Orçam Base'!K20","v":0},{"$f":"ROUND(E18*C18,2)","v":0},0,0,{"$f":"G18*J18","v":0},{"$f":"'PFS- I- Orçam Base'!$E$28","v":0.70530000000000004}]
[{"$f":"'PFS- I- Orçam Base'!C21","v":"Topógrafo"},{"$f":"'PFS- I- Orçam Base'!E21","v":"T2"},{"$f":"'PFS- I- Orçam Base'!G21","v":1},{"$f":"'PFS- I- Orçam Base'!$N$2","v":36},{"$f":"'PFS- I- Orçam Base'!K21","v":0},0,0,0,0,{"$f":"'PFS- I- Orçam Base'!$E$28","v":0.70530000000000004}]
[{"$f":"'PFS- I- Orçam Base'!C22","v":"Técnico de Edificações"},{"$f":"'PFS- I- Orçam Base'!E22","v":"T2"},{"$f":"'PFS- I- Orçam Base'!G22","v":2},{"$f":"'PFS- I- Orçam Base'!$N$2","v":36},{"$f":"'PFS- I- Orçam Base'!K22","v":0},0,0,0,0,{"$f":"'PFS- I- Orçam Base'!$E$28","v":0.70530000000000004}]
[{"$f":"'PFS- I- Orçam Base'!C25","v":"Servente Contínuo (Auxiliar de Topografia)"},{"$f":"'PFS- I- Orçam Base'!E25","v":"T4"},{"$f":"'PFS- I- Orçam Base'!G25","v":1},{"$f":"'PFS- I- Orçam Base'!$N$2","v":36},{"$f":"'PFS- I- Orçam Base'!K25","v":0},0,0,0,0,{"$f":"'PFS- I- Orçam Base'!$E$28","v":0.70530000000000004}]
[{"$f":"'PFS- I- Orçam Base'!C26","v":"Técnico Auxiliar (Laboratorista)"},{"$f":"'PFS- I- Orçam Base'!E26","v":"T3"},{"$f":"'PFS- I- Orçam Base'!G26","v":1},{"$f":"'PFS- I- Orçam Base'!$N$2","v":36},{"$f":"'PFS- I- Orçam Base'!K26","v":0},0,{"$f":"D22*F22","v":0},{"$f":"ROUND((F22*J22),2)","v":0},{"$f":"G22*J22","v":0},{"$f":"'PFS- I- Orçam Base'!$E$28","v":0.70530000000000004}]
[{"$f":"'PFS- I- Orçam Base'!C27","v":"Servente Contínuo (Auxiliar de Laboratório)"},{"$f":"'PFS- I- Orçam Base'!E27","v":"T4"},{"$f":"'PFS- I- Orçam Base'!G27","v":1},{"$f":"'PFS- I- Orçam Base'!$N$2","v":36},{"$f":"'PFS- I- Orçam Base'!K27","v":0},0,{"$f":"D23*F23","v":0},{"$f":"ROUND((F23*J23),2)","v":0},{"$f":"G23*J23","v":0},{"$f":"'PFS- I- Orçam Base'!$E$28","v":0.70530000000000004}]
["TOTAIS",{"$nulls":4},{"$f":"ROUND((SUM(F13:F23)),2)","v":0},{"$f":"ROUND((SUM(G13:G23)),2)","v":0},{"$f":"ROUND((SUM(H13:H23)),2)","v":0},{"$f":"SUM(I13:I23)","v":0}]
["NOME DO INFORMANTE:",{"$nulls":6},"QUALIFICAÇÃO:"]
[]
["ASSINATURA:",{"$nulls":7},"DATA:"]
[]
["OBSERVAÇÃO:"]
["DETALHAR OS ENCARGOS SOCIAIS NO FOR PFS-VII"]
["TODOS OS EMPREGADOS A SEREM CONTRATADOS DEVERÃO COMPROVAR VÍNCULO EMPREGATÍCIO, POR MEIO DE CARTEIRA DE TRABALHO E PREVIDÊNCIA SOCIAL – CTPS ASSINADA."]

{"sheet":"PFS_III _Alimentação","index":7,"n_rows":58,"n_cols":8,"rows_kept":58,"cut":false,"hidden":false,"merged":[[3,0,4,6],[5,0,5,7],[7,4,7,7],[8,4,8,7],[9,0,11,0],[9,1,11,1],[9,6,9,7],[9,5,11,5]]}
[]
[]
[]
["DESPESAS GERAIS\nALIMENTAÇÃO - Almoço",{"$nulls":6},"CODIGO:"]
[{"$nulls":7},"PFS-III"]
[]
[]
[{"$f":"[36]PFS!A8","v":"NOME DA CONSULTORA:"},null,null,null,"OBJETO:"]
[]
["CATEGORIA FUNCIONAL","CATEGORIA","TOTAL DE","TOTAL DE","SALÁRIO","ALIMENTAÇÃO EQUIPE (ALMOÇO)\nR$/Unit","ALIMENTAÇÃO"]
[null,null,"HOMENS","MESES","MENSAL  (R$)",null,"DIÁRIO","MENSAL"]
[{"$nulls":6},"R$","R$"]
[]
[{"$f":"'PFS- I- Orçam Base'!C14","v":"Engenheiro - Profissional Pleno"},{"$f":"'PFS- I- Orçam Base'!E14","v":"P2"},{"$f":"'PFS- I- Orçam Base'!G14","v":1},{"$f":"'PFS- I- Orçam Base'!$N$2","v":36},{"$f":"'PFS- I- Orçam Base'!K14","v":0},null,{"$f":"F14*C14","v":0}]
[{"$f":"'PFS- I- Orçam Base'!C15","v":"Engenheiro - Profissional Júnior"},{"$f":"'PFS- I- Orçam Base'!E15","v":"P3"},{"$f":"'PFS- I- Orçam Base'!G15","v":2},{"$f":"'PFS- I- Orçam Base'!$N$2","v":36},{"$f":"'PFS- I- Orçam Base'!K15","v":0},null,0]
[{"$f":"'PFS- I- Orçam Base'!C16","v":"Geólogo - Profissional Júnior"},{"$f":"'PFS- I- Orçam Base'!E16","v":"P3"},{"$f":"'PFS- I- Orçam Base'!G16","v":1},{"$f":"'PFS- I- Orçam Base'!$N$2","v":36},{"$f":"'PFS- I- Orçam Base'!K16","v":0},null,{"$f":"F16*C16","v":0}]
["Auxiliar de Escritório","A2",{"$f":"'PFS- I- Orçam Base'!G18","v":1},{"$f":"'PFS- I- Orçam Base'!$N$2","v":36},{"$f":"'PFS- I- Orçam Base'!K18","v":0},null,0]
[{"$f":"'PFS- I- Orçam Base'!C19","v":"Técnico - Profissional Especial"},{"$f":"'PFS- I- Orçam Base'!E19","v":"T0"},{"$f":"'PFS- I- Orçam Base'!G19","v":1},{"$f":"'PFS- I- Orçam Base'!$N$2","v":36},{"$f":"'PFS- I- Orçam Base'!K19","v":0},null,0]
[{"$f":"'PFS- I- Orçam Base'!C20","v":"Técnico Auxiliar (Campo)"},{"$f":"'PFS- I- Orçam Base'!E20","v":"T3"},{"$f":"'PFS- I- Orçam Base'!G20","v":3},{"$f":"'PFS- I- Orçam Base'!$N$2","v":36},{"$f":"'PFS- I- Orçam Base'!K20","v":0},null,0]
[{"$f":"'PFS- I- Orçam Base'!C21","v":"Topógrafo"},{"$f":"'PFS- I- Orçam Base'!E21","v":"T2"},{"$f":"'PFS- I- Orçam Base'!G21","v":1},{"$f":"'PFS- I- Orçam Base'!$N$2","v":36},{"$f":"'PFS- I- Orçam Base'!K21","v":0},null,0]
[{"$f":"'PFS- I- Orçam Base'!C22","v":"Técnico de Edificações"},{"$f":"'PFS- I- Orçam Base'!E22","v":"T2"},{"$f":"'PFS- I- Orçam Base'!G22","v":2},{"$f":"'PFS- I- Orçam Base'!$N$2","v":36},{"$f":"'PFS- I- Orçam Base'!K22","v":0},null,0]
[{"$f":"'PFS- I- Orçam Base'!C25","v":"Servente Contínuo (Auxiliar de Topografia)"},{"$f":"'PFS- I- Orçam Base'!E25","v":"T4"},{"$f":"'PFS- I- Orçam Base'!G25","v":1},{"$f":"'PFS- I- Orçam Base'!$N$2","v":36},{"$f":"'PFS- I- Orçam Base'!K25","v":0},null,{"$f":"F22*C22","v":0}]
[{"$f":"'PFS- I- Orçam Base'!C26","v":"Técnico Auxiliar (Laboratorista)"},{"$f":"'PFS- I- Orçam Base'!E26","v":"T3"},{"$f":"'PFS- I- Orçam Base'!G26","v":1},{"$f":"'PFS- I- Orçam Base'!$N$2","v":36},{"$f":"'PFS- I- Orçam Base'!K26","v":0},null,{"$f":"F23*C23","v":0}]
[{"$f":"'PFS- I- Orçam Base'!C27","v":"Servente Contínuo (Auxiliar de Laboratório)"},{"$f":"'PFS- I- Orçam Base'!E27","v":"T4"},{"$f":"'PFS- I- Orçam Base'!G27","v":1},{"$f":"'PFS- I- Orçam Base'!$N$2","v":36},{"$f":"'PFS- I- Orçam Base'!K27","v":0},null,{"$f":"F24*C24","v":0}]
["TOTAIS",null,{"$f":"SUM(C14:C24)","v":15},null,null,null,{"$f":"SUM(G14:G24)","v":0},{"$f":"ROUND((SUM(H14:H24)),2)","v":0}]
["NOME DO INFORMANTE:"]
[]
["ASSINATURA:"]
[]
[]
["Referência:"]
["1- Os valores das diárias de alimentação para nível de engenheiro e geólogo estão conforme o sítio eletrônico"]
[" \"dissidio.com.br\", para o estado de Rio Grande do Norte, vigente no ano de 2023, no valor de R$ 34,00."]
{"$rows_empty":8}
["https://dissidio.com.br/salario/engenheiro-civil/#:~:text=vale%20refei%C3%A7%C3%A3o%202023-,Valor%20m%C3%A9dio%20de%20vale%20refei%C3%A7%C3%A3o%20e%20reajuste%202023%20para%20Engenheiro,dia%3A%20R%24%2034%2C00"]
["Data da pesquisa 28/02/2023"]
[]
["2- Os valores das diárias de alimentação para nível técnico e auxiliar estão conforme a CCT do Senalba do Rio Grade do Norte "]
["(Sindicato dos Empregados Em Entidades Culturais, Recreativas, de Assistência Social, de Orientação e Formação Profissional),"]
[" vigente no ano de 2023, no valor de R$ 16,50."]
[]
[]
[]
[]
[]
[]
["http://www.senalbarn.com.br/?p=10846#:~:text=Informamos%20a%20todos%20os%20trabalhadores,todos%20os%20trabalhadores%20do%20SESC%2F "]
["Data da pesquisa 28/02/2023"]
[]
["O valor da diária de alimentação considerado para a planilha orçamentária foi a média simples entre o valor para engenheiro/geólogo e nível técnico/auxiliar,"]
[" ou seja, valor da diária de alimentação = (34+16,50)/2 = R$ 25,25."]

{"sheet":"PFS_IV Desp Gerais","index":8,"n_rows":46,"n_cols":21,"rows_kept":46,"cut":false,"hidden":false,"merged":[[26,2,26,8],[29,2,29,7],[12,2,12,5],[12,11,12,13],[14,2,14,9],[19,2,19,9],[24,6,25,6],[24,7,25,7],[24,8,25,8],[24,9,25,9],[25,3,25,5],[24,3,24,5],[23,2,23,5],[21,2,21,5],[13,2,13,5],[22,2,22,5],[20,2,20,5],[2,4,2,8],[7,11,7,13],[8,4,8,8],[9,8,9,9],[11,2,11,9],[3,1,4,8],[9,1,10,1],[9,6,10,6],[9,7,10,7],[9,2,10,5]]}
[]
[]
[]
[null,"DESPESAS GERAIS ",{"$nulls":7},"CODIGO:"]
[{"$nulls":9},"PFS-IV"]
[null,"NOME DA CONSULTORA:"]
[]
[null,{"$f":"[36]PFS!A10","v":"LOCALIZAÇÃO:"},null,null,"OBJETO:",{"$nulls":4},"EDITAL:"]
[]
["Código","ITEM","DISCRIMINAÇÃO",null,null,null,"UNID.","QUANT.","CUSTOS (R$)"]
[{"$nulls":8},"UNITÁRIO","TOTAL"]
[null,1,"VEÍCULOS"]
["CPU","1.1","Veículo leve, 71 a 115 CV, com ar condicionado, incluindo despesas com combustível, óleos, manutenção, licenciamento, seguros, impostos",null,null,null,"mês",{"$f":"'PFS- I- Orçam Base'!J33","v":144},{"$f":"'PFS- I- Orçam Base'!K33","v":0},{"$f":"ROUND(I13*H13,2)","v":0}]
["CPU","1.2","PICK-UP - CD 4X4 Diesel ",null,null,null,"mês",{"$f":"'PFS- I- Orçam Base'!J32","v":144},{"$f":"'PFS- I- Orçam Base'!K32","v":0},{"$f":"ROUND(I14*H14,2)","v":0},{"$f":"SUM(J13:J14)","v":0}]
[null,2,"EQUIPAMENTOS"]
["DNIT/B8958","2.1","Instrumental de Topografia",null,null,null,"mês",{"$f":"'PFS- I- Orçam Base'!J35","v":36},null,{"$f":"ROUND(H16*I16,2)","v":0}]
["DNIT/B8957","2.2","Instrumental de Solos",null,null,null,"mês",36,null,{"$f":"ROUND(H17*I17,2)","v":0}]
["DNIT/B8956","2.3","Instrumental de Concreto",null,null,null,"mês",36,null,0]
["Cotação","2.4","Equipamento de topografia - drone para mapeamento",null,null,null,"un",1,null,{"$f":"ROUND(H19*I19,2)","v":0},{"$f":"SUM(J16:J19)","v":0}]
[null,3,"MANUTENÇÃO E ADMINISTRAÇÃO DE ESCRITÓRIO"]
["DNIT/B8952","3.1","Aluguel de Escritório",null,null,null,"mês",36,{"$f":"'PFS- I- Orçam Base'!K38","v":0},{"$f":"ROUND(H21*I21,2)","v":0}]
["DNIT/B8953","3.2",{"$f":"'PFS- I- Orçam Base'!C39","v":"Cesta de Mobiliário de Escritório"},null,null,null,"mês",{"$f":"'PFS- I- Orçam Base'!J39","v":36},{"$f":"'PFS- I- Orçam Base'!K39","v":0},0]
["DNIT/B8959","3.3","Custos Diversos de Escritório",null,null,null,"mês",{"$f":"H22","v":36},{"$f":"'PFS- I- Orçam Base'!K40","v":0},0,{"$f":"SUM(J21:J23)","v":0}]
[null,4,{"$f":"UPPER(\"Alimentação\")","v":"ALIMENTAÇÃO"}]
[null,"4.1","Alimentação ",null,null,null,"mês",{"$f":"'PFS- I- Orçam Base'!J42","v":36},{"$f":"'PFS- I- Orçam Base'!K42","v":0},{"$f":"ROUND(H25*I25,2)","v":0}]
[]
[null,null,"TOTAL  DE DESPESAS GERAIS",{"$nulls":6},{"$f":"SUM(J13:J26)","v":0}]
[null,null,"NOME DO INFORMANTE:",{"$nulls":4},"QUALIFICAÇÃO:"]
[]
[null,null,"ASSINATURA:",{"$nulls":5},"DATA:"]
[]
[null,"OBSERVAÇÃO:"]
[null,"DETALHAR A ALIMENTAÇÃO NO  PFS-III"]
[]
[]
[null,"Drone - DJI Mavic 3 Multispectral"]
[null,"Data da pesquisa - 24/02/2023"]
[null,"https://www.google.com/search?tbm=shop&sxsrf=AJOqlzW55vv860fUcGk9yf2Wy-0C4_CsWw:1677258157051&q=DJI+Mavic+3+Multispectral&spell=1&sa=X&ved=0ahUKEwimwJbF0a79AhX9qpUCHZGqDwQQBQjcCSgA"]
[]
[{"$nulls":10},"PRODUTO","COT. 1","COT. 2","COT. 3","COT. 4","COT. 5","COT. 6","COT. 7","COT. 8","COT. 9","COT. 10"]
[{"$nulls":10},"DJI Mavic 3 Multispectral",25499,42790,23999.99,46791,23389,44000,33072.019999999997,45990,39990,31491]
[]
[{"$nulls":10},"CV=",{"$f":"_xlfn.STDEV.S(L41:U41)/AVERAGE(L41:U41)","v":0.26100000000000001}]
[{"$nulls":10},"Média=",{"$f":"AVERAGE(L41:U41)","v":35701.199999999997}]
[{"$nulls":10},"Mediana=",{"$f":"MEDIAN(L41:U41)","v":36531.01}]
[{"$nulls":10},"Menor=",{"$f":"SMALL(L44:L45,1)","v":35701.199999999997}]

{"sheet":"PFS_VI Despesas Fiscais","index":9,"n_rows":50,"n_cols":7,"rows_kept":50,"cut":false,"hidden":false,"merged":[[39,0,39,4],[44,0,44,6],[45,0,45,6],[3,0,4,5],[9,0,10,4],[34,0,34,4],[35,0,35,4],[36,0,36,4],[37,0,37,4],[38,0,38,4],[29,0,29,4],[30,0,30,4],[31,0,31,4],[32,0,32,4],[33,0,33,4],[24,0,24,4],[25,0,25,4],[26,0,26,4],[27,0,27,4],[28,0,28,4],[11,0,11,4],[12,0,12,4],[13,0,13,4],[14,0,14,4],[15,0,15,4],[0,2,0,6],[1,2,1,6],[2,2,2,6],[5,0,5,6],[9,5,9,6]]}
[]
[]
[]
["DETALHAMENTO DE DESPESAS FISCAIS",{"$nulls":5},"CODIGO:"]
[{"$nulls":6},"PFS-VI"]
["NOME DA CONSULTORA:"]
[]
[{"$f":"[37]PFS!A10","v":"LOCALIZAÇÃO:"},null,"OBJETO:"]
[]
["DISCRIMINAÇÃO",{"$nulls":4},"VALORES"]
[{"$nulls":5},"DF %","DF' %"]
[]
["1 - ISS",{"$nulls":4},5]
["2 - PIS",{"$nulls":4},{"$f":"1.65*0.8","v":1.32}]
["3 - COFINS",{"$nulls":4},{"$f":"7.6*0.8","v":6.08}]
{"$rows_empty":24}
["TOTAIS DE DESPESAS FISCAIS ",{"$nulls":4},{"$f":"F13+F14+F15+F16","v":12.4},{"$f":"((1/(1-F40%))-1)*100","v":14.16}]
["NOME DO INFORMANTE:",null,null,"QUALIFICAÇÃO:"]
[]
["ASSINATURA:",{"$nulls":4},"DATA:"]
[]
["Observação:"]
["As despesas fiscais (DF) incidem sobre o total da fatura e não sobre os custos incorridos. Portanto aplicar a seguinte fórmula:"]
[" DF' = { [ 1 / ( 1 - DF ) ] - 1 } x 100"]
[" ou seja, para o valor máximo de 12,40%, o valor a ser aplicado na composição dos preços será:"]
[" DF' = { [ 1 / ( 1 - 0,1240 ) ] - 1 } x 100"]
[" DF' =0,1416  ou  14,16%"]

{"sheet":"PFS_V_Det. Custos Adm","index":10,"n_rows":39,"n_cols":6,"rows_kept":39,"cut":false,"hidden":false,"merged":[[41,0,41,5],[4,0,5,4],[10,0,11,4],[35,1,35,4],[38,0,38,5],[39,0,39,5],[40,0,40,5],[1,2,1,5],[2,2,2,5],[3,2,3,5],[6,0,6,5],[12,1,12,4]]}
[]
[]
[]
[]
["DETALHAMENTO DO CUSTO DE ADMINISTRAÇÃO",{"$nulls":4},"CODIGO:"]
[{"$nulls":5},"PFS-V"]
["NOME DA CONSULTORA:"]
[]
[{"$f":"[37]PFS!A10","v":"LOCALIZAÇÃO:"},null,"OBJETO:"]
[]
["DISCRIMINAÇÃO",{"$nulls":4},"VALORES"]
[{"$nulls":5},"%"]
[1,"Custos da equipe da administração central da empresa consultora (diretoria, pessoal técnico de apoio e pessoal administrativo não diretamente vinculado à prestação dos serviços)",null,null,null,0.15]
{"$rows_empty":22}
[null,"TOTAIS DO CUSTO DE ADMINISTRAÇÃO",null,null,null,{"$f":"SUM(F13:F35)","v":0.15}]
["NOME DO INFORMANTE:",null,null,"QUALIFICAÇÃO:"]
["ASSINATURA:",{"$nulls":4},"DATA:"]
["OBSERVAÇAO:"]

{"sheet":"PFS_VII Det_ Enc_ Soc_","index":11,"n_rows":53,"n_cols":8,"rows_kept":53,"cut":false,"hidden":false,"merged":[[46,1,46,3],[47,0,47,3],[49,0,49,3],[3,0,4,6],[9,0,10,3],[41,1,41,3],[42,0,42,3],[44,1,44,3],[45,1,45,3],[37,1,37,3],[38,1,38,3],[39,1,39,3],[40,1,40,3],[21,0,21,3],[22,0,22,6],[34,0,34,3],[35,1,35,7],[2,2,2,5],[5,0,5,7],[9,4,9,5],[9,6,9,7],[11,1,11,3]]}
[]
[]
[]
["DETALHAMENTO DOS ENCARGOS SOCIAIS",{"$nulls":6},"CODIGO:"]
[{"$nulls":7},"PFS-VII"]
["NOME DA CONSULTORA:"]
[]
[{"$f":"[36]PFS!A10","v":"LOCALIZAÇÃO:"},null,"OBJETO:",{"$nulls":4},"EDITAL:"]
[]
["DISCRIMINAÇÃO",null,null,null,"COM DESONERAÇÃO",null,"SEM DESONERAÇÃO"]
[{"$nulls":4},"HORISTA\n%","MENSALISTA\n%","HORISTA\n%","MENSALISTA\n%"]
["A","ENCARGOS SOCIAIS BÁSICOS"]
["A1","INSS",null,null,0,0,0.2,0.2]
["A2","SESI",null,null,1.4999999999999999E-2,1.4999999999999999E-2,1.4999999999999999E-2,1.4999999999999999E-2]
["A3","SENAI",null,null,0.01,0.01,0.01,0.01]
["A4","INCRA",null,null,2E-3,2E-3,2E-3,2E-3]
["A5","SEBRAE",null,null,6.0000000000000001E-3,6.0000000000000001E-3,6.0000000000000001E-3,6.0000000000000001E-3]
["A6","Salário Educação",null,null,2.5000000000000001E-2,2.5000000000000001E-2,2.5000000000000001E-2,2.5000000000000001E-2]
["A7","Seguro Contra Acidente de Trabalho",null,null,0.03,0.03,0.03,0.03]
["A8","FGTS",null,null,0.08,0.08,0.08,0.08]
["A9","SECONCI",null,null,0,0,0,0]
["SUBTOTAL DE \"A\"",null,null,null,0.16800000000000001,0.16800000000000001,0.36799999999999999,0.36799999999999999]
[]
["B"," ENCARGOS SOCIAIS QUE RECEBEM INCIDÊNCIA DE \"A\""]
["B1","Repouso Semanal Remunerado",null,null,0.17979999999999999,"Não incide",0.17979999999999999,"Não incide"]
["B2","Feriados",null,null,4.2799999999999998E-2,"Não incide",4.2799999999999998E-2,"Não incide"]
["B3","Auxílio - Enfermidade",null,null,8.6999999999999994E-3,6.6E-3,8.6999999999999994E-3,6.6E-3]
["B4","13º Salário",null,null,0.11020000000000001,8.3299999999999999E-2,{"$f":"E28","v":0.11020000000000001},{"$f":"F28","v":8.3299999999999999E-2}]
["B5","Licença Paternidade",null,null,6.9999999999999999E-4,5.9999999999999995E-4,6.9999999999999999E-4,5.9999999999999995E-4]
["B6","Faltas Justificadas",null,null,7.3000000000000001E-3,5.5999999999999999E-3,{"$f":"E30","v":7.3000000000000001E-3},{"$f":"F30","v":5.5999999999999999E-3}]
["B7","Dias de Chuvas",null,null,1.7999999999999999E-2,"Não incide",{"$f":"E31","v":1.7999999999999999E-2},"Não incide"]
["B8","Auxílio Acidente de Trabalho",null,null,1.1000000000000001E-3,8.0000000000000004E-4,{"$f":"E32","v":1.1000000000000001E-3},{"$f":"F32","v":8.0000000000000004E-4}]
["B9","Férias Gozadas",null,null,0.11,8.3199999999999996E-2,{"$f":"E33","v":0.11},{"$f":"F33","v":8.3199999999999996E-2}]
["B10","Salário Maternidade",null,null,2.9999999999999997E-4,2.0000000000000001E-4,{"$f":"E34","v":2.9999999999999997E-4},{"$f":"F34","v":2.0000000000000001E-4}]
["SUBTOTAL DE  \"B\"",null,null,null,{"$f":"SUM(E25:E34)","v":0.47889999999999999},{"$f":"SUM(F25:F34)","v":0.18029999999999999},{"$f":"SUM(G25:G34)","v":0.47889999999999999},{"$f":"SUM(H25:H34)","v":0.18029999999999999}]
[]
["C"," ENCARGOS SOCIAIS QUE NÃO RECEBEM INCIDÊNCIA DE \"A\""]
["C1","Aviso prévio (indenizado)",null,null,5.1700000000000003E-2,3.9100000000000003E-2,{"$f":"E38","v":5.1700000000000003E-2},3.9100000000000003E-2]
["C2","Aviso prévio (trabalhado)",null,null,1.1999999999999999E-3,8.9999999999999998E-4,1.1999999999999999E-3,8.9999999999999998E-4]
["C3","Férias (indenizadas)",null,null,2.7699999999999999E-2,2.1000000000000001E-2,2.7699999999999999E-2,2.1000000000000001E-2]
["C4","Depósito Rescisão Sem Justa Causa",null,null,3.0099999999999998E-2,2.2800000000000001E-2,3.0099999999999998E-2,2.2800000000000001E-2]
["C5","Indenização Adicional ",null,null,4.3E-3,3.3E-3,4.3E-3,3.3E-3]
["SUBTOTAL DE \"C\"",null,null,null,{"$f":"SUM(E38:E42)","v":0.115},{"$f":"SUM(F38:F42)","v":8.7099999999999997E-2},{"$f":"SUM(G38:G42)","v":0.115},{"$f":"SUM(H38:H42)","v":8.7099999999999997E-2}]
[]
["D"," REINCIDÊNCIAS"]
["D1","Reincidência de \"A\" sobre \"B\"",null,null,{"$f":"E22*E35","v":8.0500000000000002E-2},{"$f":"F22*F35","v":3.0300000000000001E-2},{"$f":"G22*G35","v":0.1762},{"$f":"H22*H35","v":6.6400000000000001E-2}]
["D2","Reincidência de Grupo A sobre aviso prévio trabalhado e reincidência do FGTS sobre Aviso Prévio Indenizado ",null,null,{"$f":"E22*E39+E20*E38","v":4.3E-3},{"$f":"F22*F39+F20*F38","v":3.3E-3},{"$f":"G22*G39+G20*G38","v":4.5999999999999999E-3},{"$f":"H22*H39+H20*H38","v":3.5000000000000001E-3}]
["SUBTOTAL DE \"D\"",null,null,null,{"$f":"E46+E47","v":8.48E-2},{"$f":"F46+F47","v":3.3599999999999998E-2},{"$f":"G46+G47","v":0.18079999999999999},{"$f":"H46+H47","v":6.9900000000000004E-2}]
[]
["TOTAIS DE ENCARGOS SOCIAIS",null,null,null,{"$f":"E48+E43+E35+E22","v":0.84670000000000001},{"$f":"F48+F43+F35+F22","v":0.46899999999999997},{"$f":"G48+G43+G35+G22","v":1.1427},{"$f":"H48+H43+H35+H22","v":0.70530000000000004}]
["NOME DO INFORMANTE:"]
["ASSINATURA:",{"$nulls":5},"DATA:"]
["Observação:"]

{"sheet":"Cron Físico-Financeiro","index":12,"n_rows":14,"n_cols":39,"rows_kept":14,"cut":false,"hidden":false,"merged":[[11,0,11,37],[12,0,12,37],[13,0,13,37],[5,38,6,38],[5,34,6,34],[5,35,6,35],[5,36,6,36],[5,37,6,37],[7,0,10,0],[7,1,8,1],[9,1,10,1],[5,22,6,22],[5,24,6,24],[5,25,6,25],[5,26,6,26],[3,3,4,37],[5,19,6,19],[5,0,5,2],[5,31,6,31],[5,32,6,32],[5,33,6,33],[5,20,6,20],[5,23,6,23],[5,27,6,27],[5,28,6,28],[5,29,6,29],[5,30,6,30],[5,9,6,9],[5,12,6,12],[5,13,6,13],[5,21,6,21],[1,0,2,15],[5,14,6,14],[5,15,6,15],[5,17,6,17],[5,18,6,18],[5,3,6,3],[5,4,6,4],[5,5,6,5],[5,10,6,10],[5,11,6,11],[5,16,6,16],[3,0,4,2],[1,16,2,30],[5,6,6,6],[5,7,6,7],[5,8,6,8]]}
[]
["CRONOGRAMA FÍSICO-FINANCEIRO ",{"$nulls":15},{"$f":"'PFS - Orçamento Base'!A8","v":"CONTRATAÇÃO DE EMPRESA PARA A PRESTAÇÃO DOS SERVIÇOS DE ENGENHARIA DE APOIO À FISCALIZAÇÃO E SUPERVISÃO DE OBRAS DE IMPLANTAÇÃO DE SISTEMAS ADUTORES, NA REGIÃO DO SERIDÓ POTIGUAR, CORRESPONDENTES AOS TRECHOS 1N, 2N, 4N e 5N."}]
[]
["PERÍODO",null,null,"PERÍODO - MESES"]
[]
["MESES ACUMULADOS",null,null,1,{"$f":"D6+1","v":2},3,4,5,6,7,8,9,10,11,12,13,14,15,16,17,18,19,20,21,22,23,24,25,26,27,28,29,30,31,32,33,34,35,36]
["FÍSICO","Relatórios Mensais","Unid."]
["FINANC.","PARCIAL","%",{"$f":"1/36","v":2.7799999999999998E-2},{"$f":"1/36","v":2.7799999999999998E-2},{"$f":"1/36","v":2.7799999999999998E-2},2.7799999999999998E-2,2.7799999999999998E-2,2.7799999999999998E-2,2.7799999999999998E-2,2.7799999999999998E-2,2.7799999999999998E-2,2.7799999999999998E-2,2.7799999999999998E-2,2.7799999999999998E-2,2.7799999999999998E-2,2.7799999999999998E-2,2.7799999999999998E-2,2.7799999999999998E-2,2.7799999999999998E-2,2.7799999999999998E-2,2.7799999999999998E-2,2.7799999999999998E-2,2.7799999999999998E-2,2.7799999999999998E-2,2.7799999999999998E-2,2.7799999999999998E-2,2.7799999999999998E-2,2.7799999999999998E-2,2.7799999999999998E-2,2.7799999999999998E-2,2.7799999999999998E-2,2.7799999999999998E-2,2.7799999999999998E-2,2.7799999999999998E-2,2.7799999999999998E-2,2.7799999999999998E-2,2.7799999999999998E-2,{"$f":"1-SUM(D8:AL8)","v":2.7E-2}]
[null,null,"R$",{"$f":"'PFS- I- Orçam Base'!L52","v":0},{"$f":"D9","v":0},{"$f":"E9","v":0},0,0,0,0,0,0,0,0,0,0,0,0,0,0,0,0,0,0,0,0,0,0,0,0,0,{"$f":"AE9","v":0},0,0,0,0,0,0,{"$f":"AL9+0.02","v":0.02}]
[null,"ACUMULADO","%",{"$f":"SUM(D8)","v":2.7799999999999998E-2},{"$f":"SUM(D10,E8)","v":5.5599999999999997E-2},8.3400000000000002E-2,0.11119999999999999,0.13900000000000001,0.1668,0.1946,0.22239999999999999,0.25019999999999998,0.27800000000000002,0.30580000000000002,0.33360000000000001,0.3614,0.38919999999999999,0.41699999999999998,0.44479999999999997,0.47260000000000002,0.50039999999999996,0.5282,0.55600000000000005,0.58379999999999999,0.61160000000000003,0.63939999999999997,0.66720000000000002,0.69499999999999995,0.7228,0.75060000000000004,0.77839999999999998,0.80620000000000003,0.83399999999999996,0.86180000000000001,0.88959999999999995,0.91739999999999999,0.94520000000000004,0.97299999999999998,1]
[null,null,"R$",{"$f":"SUM(D9)","v":0},{"$f":"SUM(D11,E9)","v":0},0,0,0,0,0,0,0,0,0,0,0,0,0,0,0,0,0,0,0,0,0,0,0,0,0,0,0,0,0,0,0,0,0,0.02]
[]
[]
["Nome da Empresa \nIDENTIFICAÇÃO, QUALIFICAÇÃO E ASSINATURA DA RESPONSÁVEL"]

{"sheet":"Cron. Físico-Finan (BRANCO)","index":13,"n_rows":21,"n_cols":15,"rows_kept":21,"cut":false,"hidden":true,"merged":[[4,13,5,13],[13,13,14,13],[4,14,5,14],[13,14,14,14],[0,0,1,7],[2,0,3,2],[2,3,3,14],[11,0,12,2],[11,3,12,14],[0,8,0,14],[1,8,1,14],[4,0,4,2],[10,0,10,14],[13,0,13,2],[4,3,5,3],[4,4,5,4],[20,0,20,14],[6,0,9,0],[15,0,18,0],[6,1,7,1],[8,1,9,1],[15,1,16,1],[17,1,18,1],[13,3,14,3],[13,4,14,4],[13,5,14,5],[13,6,14,6],[13,7,14,7],[13,8,14,8],[13,9,14,9],[13,10,14,10],[13,11,14,11],[4,10,5,10],[4,11,5,11],[4,12,5,12],[13,12,14,12],[4,5,5,5],[4,6,5,6],[4,7,5,7],[4,8,5,8],[4,9,5,9]]}
["CRONOGRAMA FÍSICO-FINANCEIRO ",{"$nulls":7},"Data Licitação/Proposta.:"]
[{"$nulls":8},"Prazo Inicial:                                                                               Lote: Único                                              Ref.:MÊS-BASE                      julho/2020"]
["PÉRIODO",null,null,"PERÍODO - DIAS"]
[]
["DIAS ACUMULADOS",null,null,30,{"$f":"D5+30","v":60},{"$f":"E5+30","v":90},120,150,180,210,240,270,300,330,360]
["FÍSICO","Relatórios Mensais","Unid."]
["FINANCEIRO","PARCIAL","%",{"$f":"'Cron Físico-Financeiro'!D8","v":2.7799999999999998E-2},{"$f":"'Cron Físico-Financeiro'!E8","v":2.7799999999999998E-2},{"$f":"'Cron Físico-Financeiro'!F8","v":2.7799999999999998E-2},{"$f":"'Cron Físico-Financeiro'!K8","v":2.7799999999999998E-2},{"$f":"'Cron Físico-Financeiro'!L8","v":2.7799999999999998E-2},{"$f":"'Cron Físico-Financeiro'!Q8","v":2.7799999999999998E-2},{"$f":"'Cron Físico-Financeiro'!U8","v":2.7799999999999998E-2},{"$f":"'Cron Físico-Financeiro'!X8","v":2.7799999999999998E-2},{"$f":"'Cron Físico-Financeiro'!AB8","v":2.7799999999999998E-2},{"$f":"'Cron Físico-Financeiro'!AC8","v":2.7799999999999998E-2},{"$f":"'Cron Físico-Financeiro'!AD8","v":2.7799999999999998E-2},{"$f":"'Cron Físico-Financeiro'!AE8","v":2.7799999999999998E-2}]
[null,null,"R$","-","-","-","-","-","-","-","-","-","-","-","-"]
[null,"ACUMULADO","%",{"$f":"E7","v":2.7799999999999998E-2},{"$f":"E7+D9","v":5.5599999999999997E-2},{"$f":"F7+E9","v":8.3400000000000002E-2},0.11119999999999999,0.13900000000000001,0.1668,0.1946,0.22239999999999999,0.25019999999999998,0.27800000000000002,0.30580000000000002,0.33360000000000001]
[null,null,"R$","-","-","-","-","-","-","-","-","-","-","-","-"]
[]
["PÉRIODO",null,null,"PERÍODO - DIAS"]
[]
["DIAS ACUMULADOS",null,null,{"$f":"O5+30","v":390},{"$f":"D14+30","v":420},{"$f":"E14+30","v":450},480,510,540,570,600,630,660,690,720]
["FÍSICO","Relatórios Mensais","Unid."]
["FINANCEIRO","PARCIAL","%",{"$f":"'Cron Físico-Financeiro'!#REF!","v":{"$error":"#REF!"}},{"$f":"'Cron Físico-Financeiro'!#REF!","v":{"$error":"#REF!"}},{"$f":"'Cron Físico-Financeiro'!#REF!","v":{"$error":"#REF!"}},{"$f":"'Cron Físico-Financeiro'!#REF!","v":{"$error":"#REF!"}},{"$f":"'Cron Físico-Financeiro'!#REF!","v":{"$error":"#REF!"}},{"$f":"'Cron Físico-Financeiro'!#REF!","v":{"$error":"#REF!"}},{"$f":"'Cron Físico-Financeiro'!#REF!","v":{"$error":"#REF!"}},{"$f":"'Cron Físico-Financeiro'!#REF!","v":{"$error":"#REF!"}},{"$f":"'Cron Físico-Financeiro'!#REF!","v":{"$error":"#REF!"}},{"$f":"'Cron Físico-Financeiro'!#REF!","v":{"$error":"#REF!"}},{"$f":"'Cron Físico-Financeiro'!#REF!","v":{"$error":"#REF!"}},{"$f":"'Cron Físico-Financeiro'!#REF!","v":{"$error":"#REF!"}}]
[null,null,"R$","-","-","-","-","-","-","-","-","-","-","-","-"]
[null,"ACUMULADO","%",{"$f":"O9+D16","v":{"$error":"#REF!"}},{"$f":"D18+E16","v":{"$error":"#REF!"}},{"$f":"E18+F16","v":{"$error":"#REF!"}},{"$error":"#REF!"},{"$error":"#REF!"},{"$error":"#REF!"},{"$error":"#REF!"},{"$error":"#REF!"},{"$error":"#REF!"},{"$error":"#REF!"},{"$error":"#REF!"},{"$error":"#REF!"}]
[null,null,"R$","-","-","-","-","-","-","-","-","-","-","-","-"]
[]
["Orçamento Referencial  - CONTRATAÇÃO DE EMPRESA ESPECIALIZADA PARA PRESTAÇÃO DOS SERVIÇOS DE SUPERVISÃO DA ELABORAÇÃO DOS PROJETOS BÁSICO E EXECUTIVO E DA EXECUÇÃO DAS OBRAS DE DUAS PONTES NA BR-425/RO (RIO ARARAS E RIO RIBEIRÃO)\n\n\n                                                                                                                                                                                                                                                                 Nome da Empresa \n                                                                                                                                                                                                               IDENTIFICAÇÃO,QUALIFICAÇÃOE ASSINATURA DA RESPONSÁVEL"]

{"sheet":"CPU VEICULO_PickUp","index":14,"n_rows":85,"n_cols":30,"rows_kept":85,"cut":false,"hidden":false,"merged":[[48,9,48,19],[48,20,48,27],[1,0,1,3],[2,0,2,3],[3,0,3,3],[4,0,4,2],[4,5,4,8],[5,0,5,3]]}
[]
["Composição de Preços de Locação de Veículos"]
["CONTRATAÇÃO DE EMPRESA PARA A PRESTAÇÃO DOS SERVIÇOS DE ENGENHARIA DE APOIO À FISCALIZAÇÃO E SUPERVISÃO DE OBRAS DE IMPLANTAÇÃO DE SISTEMAS ADUTORES, NA REGIÃO DO SERIDÓ POTIGUAR, CORRESPONDENTES AOS TRECHOS 1N, 2N, 4N e 5N.",{"$nulls":4},"CV","Média","Mediana",null,null,null,"CV","Média","Mediana",{"$nulls":8},"CV","Média","Mediana"]
["CODEVASF ",{"$nulls":4},{"$f":"_xlfn.STDEV.S(F7:I7)/AVERAGE(F7:I7)","v":7.3700000000000002E-2},{"$f":"AVERAGE(F7:I7)","v":171425},{"$f":"MEDIAN(F7:I7)","v":169762},null,null,null,{"$f":"_xlfn.STDEV.S(M6:T6)/AVERAGE(M6:T6)","v":8.1000000000000003E-2},{"$f":"AVERAGE(M6:T6)","v":32.770000000000003},{"$f":"MEDIAN(M6:T6)","v":32.700000000000003},{"$nulls":8},{"$f":"_xlfn.STDEV.S(X6:AD6)/AVERAGE(X6:AD6)","v":0.254},{"$f":"AVERAGE(X6:AE6)","v":568.85},{"$f":"MEDIAN(X6:AE6)","v":499.9}]
["OBS:               Preço sem BDI                                                                   BDI=",{"$nulls":4},"Preço FIPE - fevereiro/2023",{"$nulls":4},"PRODUTO - Pesquisa fev/2023","MENOR","COT. 1","COT. 2","COT. 3","COT. 4","COT. 5","COT. 6","COT. 7","COT. 8",null,"PRODUTO - Pesquisa fev/2023","MENOR","COT. 1","COT. 2","COT. 3","COT. 4","COT. 5","COT. 6","COT. 7"]
["Veículo tipo pick-up, cabine dupla - 2.0 16V 4x4 diesel Aut. ",{"$nulls":4},"Toro Endurance 2.0 16V 4x4 Diesel Aut.","Toro Freedom 2.0 16V 4x4 TB Diesel Aut.","Toro Volcano 2.0 16V 4x4 TB Diesel Aut."," Toro Ranch 2.0 16V 4x4 TB Diesel Aut.\n",null,"LUBRIFICANTE 5W30",{"$f":"SMALL(M4:N4,1)","v":32.700000000000003},29.9,31.08,35,34.1,32.700000000000003,29.9,36.74,null,null,"Pneu 225/65 R17",{"$f":"SMALL(X4:Y4,1)","v":499.9},499.9,497.8,554.70000000000005,484.96,499.9,554.70000000000005,890]
[null,null,"Mensal (R$):",{"$f":"D47","v":6992.26},null,159544,162649,186632,176875]
[null,null,"Diária (R$):",{"$f":"D7/22","v":317.83}]
["A",null,"Depreciação mensal do equipamento"]
["A1",null,"Preço de Aquisição ",{"$f":"SMALL(G4:H4,1)","v":169762}]
["A2",null,"Tempo previsto de vida útil (meses)",36]
["A3",null,"Previsão de recup. Na venda do bem usado",0.4]
["A4",null,"Custo mensal [A1-(A3xA1)]/A2",{"$f":"(D10-(D12*D10))/D11","v":2829.37}]
["B",null,"Juros pelo Capital empregado"]
["B1",null,"Taxa mensal de Juros *",{"$f":"POWER(1+D53,1/12)-1","v":1.0794E-2}]
["B2",null,"Juros s/depreciação/aluguel (B1xA4)",{"$f":"D15*D13","v":30.54}]
["C",null,"Conservação e manutenção **",0.75]
["C1",null,"Taxa de gastos s/a deprec. Inc. seguros (%)",{"$f":"D17","v":0.75}]
["C2",null,"Incidência mensal (C1xA4)",{"$f":"D18*D13","v":2122.0300000000002}]
["D",null,"Combustível"]
["D1",null,"Média mensal de quilômetro por veículo",{"$f":"130*22","v":2860}]
["D2",null,"Preço do litro de combustível",6.32]
["D3",null,"Quilômetros rodados com um litro combustivel",10]
["D4",null,"Combustivel    (D1/D3)*D2",{"$f":"(D21/D23)*D22","v":1807.52}]
["E",null,"Lubrificantes"]
["E1",null,"Quilometragem do Contrato (D1*12)",{"$f":"D21*36","v":102960}]
["E2",null,"Franquia por troca de óleo (km)",10000]
["E3",null,"Preço do litro de óleo",{"$f":"L6","v":32.700000000000003}]
["E4",null,"Quantidade de litros de óleo por troca",5]
["E5",null,"Quantidade de dias do Contrato",{"$f":"365*3","v":1095}]
["E6",null,"Lubrificantes  E = (E1*E3*E4*30)/E2*E5",{"$f":"(D26*D28*D29*30)/(D27*D30)","v":46.12}]
["F",null,"Pneus"]
["F1",null,"Quilometragem do Contrato ",{"$f":"D26","v":102960}]
["F2",null,"Vida do Pneu em quilômetros",45000]
["F3",null,"Quantidade de pneus",5]
["F4",null,"Preço do Pneu",{"$f":"W6","v":499.9}]
["F5",null,"Quantidade de dias do contrato ",{"$f":"D30","v":1095}]
["F6",null,"Pneus = (F1*F3*F4*30)/(F2*F5)",{"$f":"(D33*D35*D36*30)/(D34*D37)","v":156.68}]
["G",null,"Motorista"]
["G1",null,"Salário com encargos sociais",4185.1099999999997]
["H",null,"Custo Mensal"," "]
[null,null,"Sem Motorista (A4+B2+C2+D4+E6+F6)",{"$f":"D13+D16+D19+D24+D31+D38","v":6992.26}]
[null,null,"Com Motorista (A4+B2+C2+D4+E6+F6+G1)",{"$f":"D13+D16+D19+D24+D31+D38+D40","v":11177.37}]
["I",null,"Custo Direto p/ km Rodado"]
[null,null,"Sem Motorista",{"$f":"D42/D21","v":2.44}]
[null,null,"Com Motorista",{"$f":"D43/D21","v":3.91}]
["J",null,"Preço cobrado sem BDI",{"$f":"D42*(1+D5)","v":6992.26}]
["J1",null,"Sem Motorista",{"$f":"D47","v":6992.26}]
["J2",null,"Com Motorista",{"$f":"D43","v":11177.37},{"$nulls":5},"https://www.google.com/search?q=lubrificante+5w30&sxsrf=AJOqlzUM514L6uswJHb1jIGpGgXchTtV5A:1677092590843&source=lnms&tbm=shop&sa=X&sqi=2&ved=2ahUKEwj_vYfh6Kn9AhVMBrkGHRT6Bv4Q_AUoAXoECAEQAw&biw=1600&bih=757&dpr=1",{"$nulls":10},"https://www.google.com/search?q=pneu+225%2F65+R17&sa=X&biw=1600&bih=757&tbm=shop&sxsrf=AJOqlzWsb-d4PS1_OUOEhKmRc2RbtSg3RQ%3A1677092596279&ei=9Gb2Y9K5ENTa5OUPvLykGA&ved=0ahUKEwjSg9Pj6Kn9AhVULbkGHTweCQMQ4dUDCAg&uact=5&oq=pneu+225%2F65+R17&gs_lcp=Cgtwcm9kdWN0cy1jYxADMgsIABCABBCxAxCDATIFCAAQgAQyBwgAEIAEEAoyBwgAEIAEEAoyBwgAEIAEEAoyBwgAEIAEEAoyBwgAEIAEEAoyBQgAEIAEMgcIABCABBAKMgcIABCABBAKOgQIIxAnOgQIABBDSgQIQRgAUABYoTJgqUBoAHAAeACAAdIFiAGUKZIBDTAuMi42LjIuMi4yLjGYAQCgAQHAAQE&sclient=products-cc"]
[]
[null,null,"OBSERVAÇÕES:"]
["*",null,"Calculado com base na taxa SELIC agosto/2022 - 13,75 % a.a"]
[null,null,"SELIC AGOSTO / 2022  -  Taxa de Juros Selic — Português (Brasil) (www.gov.br) ",0.13750000000000001]
[]
["**",null,"Conservação e manutenção - é calculado com o uso de um coeficiente multiplicador \"k\", conforme tabela abaixo, sobre a "]
[null,null,"depreciação mensal do equipamento (Item A da planilha de composição de preços). Os valores de K são fornecidos por"]
[null,null," fabricantes. "]
[null,null,"Metodologia conforme a bibliografia \"Como Preparar Orçamentos de Obras\", 3 edição, Aldo Dórea Mattos, 2019."]
[]
[null,null,"Preço calculado sem BDI"]
{"$rows_empty":24}
[{"$nulls":5},"https://precos.petrobras.com.br/sele%C3%A7%C3%A3o-de-estados-diesel"]

{"sheet":"CPU VEICULO_Pequeno","index":15,"n_rows":84,"n_cols":33,"rows_kept":84,"cut":false,"hidden":false,"merged":[[48,9,48,20],[48,21,48,28],[1,0,1,3],[2,0,2,3],[3,0,3,3],[4,0,4,2],[4,5,4,8],[5,0,5,3]]}
[]
["Composição de Preços de Locação de Veículos"]
["CONTRATAÇÃO DE EMPRESA PARA A PRESTAÇÃO DOS SERVIÇOS DE ENGENHARIA DE APOIO À FISCALIZAÇÃO E SUPERVISÃO DE OBRAS DE IMPLANTAÇÃO DE SISTEMAS ADUTORES, NA REGIÃO DO SERIDÓ POTIGUAR, CORRESPONDENTES AOS TRECHOS 1N, 2N, 4N e 5N.",{"$nulls":4},"CV","Média","Mediana",null,null,null,"CV","Média","Mediana",{"$nulls":9},"CV","Média","Mediana"]
["CODEVASF ",{"$nulls":4},{"$f":"_xlfn.STDEV.S(F7:I7)/AVERAGE(F7:I7)","v":0.10639999999999999},{"$f":"AVERAGE(F7:I7)","v":72873.5},{"$f":"MEDIAN(F7:I7)","v":72609.5},null,null,null,{"$f":"_xlfn.STDEV.S(M6:U6)/AVERAGE(M6:U6)","v":0.25},{"$f":"AVERAGE(M6:U6)","v":29.6},{"$f":"MEDIAN(M6:U6)","v":28.9},{"$nulls":9},{"$f":"_xlfn.STDEV.S(Y6:AF6)/AVERAGE(Y6:AF6)","v":0.219},{"$f":"AVERAGE(Y6:AF6)","v":286.98},{"$f":"MEDIAN(Y6:AF6)","v":301.5}]
["OBS:               Preço sem BDI                                                                   BDI=",{"$nulls":4},"Preço FIPE - fevereiro/2023",{"$nulls":4},"PRODUTO - Pesquisa fev/2023","MENOR","COT. 1","COT. 2","COT. 3","COT. 4","COT. 5","COT. 6","COT. 7","COT. 8","COT. 9",null,"PRODUTO - Pesquisa fev/2023","MENOR","COT. 1","COT. 2","COT. 3","COT. 4","COT. 5","COT. 6","COT. 7","COT. 8","COT. 9"]
["(B2) Gol 1.0 T. Flex 12V 5p",{"$nulls":4},"Volksvagen Gol 1.0","HB20 Platinum 1.0 TB Flex 12V Mec.","ONIX HATCH LT 1.0 12V Flex 5p Mec.","MOBI TREKKING 1.0 Flex 5p.",null,"LUBRIFICANTE 15W40",{"$f":"SMALL(M4:N4,1)","v":28.9},28.9,22.9,28,{"$f":"119.9/4","v":29.98},39.9,20,41.29,22.9,32.5,null,"Pneu 185/65 R14",{"$f":"SMALL(Y4:Z4,1)","v":286.98},300.64,244.93,273.5,329.9,156.99,{"$f":"1209.45/4","v":302.36},{"$f":"1354/4","v":338.5},{"$f":"698/2","v":349}]
[null,null,"Mensal (R$):",{"$f":"D47","v":3283.81},null,65590,80685,78363,66856]
[null,null,"Diária (R$):",{"$f":"D7/22","v":149.26}]
["A",null,"Depreciação mensal do equipamento"]
["A1",null,"Preço de Aquisição ",{"$f":"SMALL(G4:H4,1)","v":72609.5}]
["A2",null,"Tempo previsto de vida útil (meses)",36]
["A3",null,"Previsão de recup. Na venda do bem usado",0.4]
["A4",null,"Custo mensal [A1-(A3xA1)]/A2",{"$f":"(D10-(D12*D10))/D11","v":1210.1600000000001}]
["B",null,"Juros pelo Capital empregado"]
["B1",null,"Taxa mensal de Juros *",{"$f":"POWER(1+D53,1/12)-1","v":1.0794E-2}]
["B2",null,"Juros s/depreciação/aluguel (B1xA4)",{"$f":"D15*D13","v":13.06}]
["C",null,"Conservação e manutenção **",0.75]
["C1",null,"Taxa de gastos s/a deprec. Inc. seguros (%)",{"$f":"D17","v":0.75}]
["C2",null,"Incidência mensal (C1xA4)",{"$f":"D18*D13","v":907.62}]
["D",null,"Combustível"]
["D1",null,"Média mensal de quilômetro por veículo",{"$f":"130*22","v":2860}]
["D2",null,"Preço do litro de combustível",5.08]
["D3",null,"Quilômetros rodados com um litro combustivel",{"$f":"(12.8+13.3+15.3+15)/4","v":14.1}]
["D4",null,"Combustivel    (D1/D3)*D2",{"$f":"(D21/D23)*D22","v":1030.4100000000001}]
["E",null,"Lubrificantes"]
["E1",null,"Quilometragem do Contrato (D1*12)",{"$f":"D21*36","v":102960}]
["E2",null,"Franquia por troca de óleo (km)",10000]
["E3",null,"Preço do litro de óleo",{"$f":"L6","v":28.9}]
["E4",null,"Quantidade de litros de óleo por troca",4]
["E5",null,"Quantidade de dias do Contrato",{"$f":"365*3","v":1095}]
["E6",null,"Lubrificantes  E = (E1*E3*E4*30)/E2*E5",{"$f":"(D26*D28*D29*30)/(D27*D30)","v":32.61}]
["F",null,"Pneus"]
["F1",null,"Quilometragem do Contrato ",{"$f":"D26","v":102960}]
["F2",null,"Vida do Pneu em quilômetros",45000]
["F3",null,"Quantidade de pneus",5]
["F4",null,"Preço do Pneu",{"$f":"X6","v":286.98}]
["F5",null,"Quantidade de dias do contrato ",{"$f":"D30","v":1095},{"$nulls":6},"https://www.google.com/search?q=lubrificante+15w40+1l&sa=X&biw=1600&bih=757&tbm=shop&sxsrf=AJOqlzUezMM_9i0M4NKjKqAMycLuOygp_g%3A1677158931166&ei=E2r3Y5e2CcH31sQPsK67CA&ved=0ahUKEwjXi8vy36v9AhXBu5UCHTDXDgEQ4dUDCAg&uact=5&oq=lubrificante+15w40+1l&gs_lcp=Cgtwcm9kdWN0cy1jYxADMgsIABAWEB4Q8QQQGDoICAAQgAQQsAM6CQgAEAcQHhCwAzoJCAAQCBAeELADOgkIABAeELADEBg6DggAEAUQHhDxBBCwAxAYOgUIABCABDoGCAAQFhAeOggIABAWEB4QGEoECEEYAVDeBFi3DWD0D2gBcAB4AIABpQWIAZAIkgEHMy0xLjAuMZgBAKABAcgBCsABAQ&sclient=products-cc"]
["F6",null,"Pneus = (F1*F3*F4*30)/(F2*F5)",{"$f":"(D33*D35*D36*30)/(D34*D37)","v":89.95}]
["G",null,"Motorista"]
["G1",null,"Salário com encargos sociais",4185.1099999999997]
["H",null,"Custo Mensal"," ",{"$nulls":17},"https://www.google.com/search?q=Pneu+185%2F65+R14&sa=X&hl=pt-BR&biw=1600&bih=757&tbm=shop&sxsrf=AJOqlzVJW-LYM1ZPHImwhsD-4UwyAvTluQ%3A1677158863331&ei=z2n3Y-uxE-zT1sQP0r-OmAs&ved=0ahUKEwir1Z7S36v9AhXsqZUCHdKfA7MQ4dUDCAg&uact=5&oq=Pneu+185%2F65+R14&gs_lcp=Cgtwcm9kdWN0cy1jYxADMgsIABCABBCxAxCDATIFCAAQgAQyBQgAEIAEMgUIABCABDIFCAAQgAQyBQgAEIAEMgUIABCABDIFCAAQgAQyBQgAEIAEMgUIABCABEoECEEYAFD5A1jGCWC1EGgAcAB4AIABrQmIAdcbkgEHNS0yLjAuMpgBAKABAcABAQ&sclient=products-cc"]
[null,null,"Sem Motorista (A4+B2+C2+D4+E6+F6)",{"$f":"D13+D16+D19+D24+D31+D38","v":3283.81}]
[null,null,"Com Motorista (A4+B2+C2+D4+E6+F6+G1)",{"$f":"D13+D16+D19+D24+D31+D38+D40","v":7468.92}]
["I",null,"Custo Direto p/ km Rodado"]
[null,null,"Sem Motorista",{"$f":"D42/D21","v":1.1499999999999999}]
[null,null,"Com Motorista",{"$f":"D43/D21","v":2.61}]
["J",null,"Preço cobrado sem BDI",{"$f":"D42*(1+D5)","v":3283.81}]
["J1",null,"Sem Motorista",{"$f":"D47","v":3283.81}]
["J2",null,"Com Motorista",{"$f":"D43","v":7468.92}]
[]
[]
["*",null,"Calculado com base na taxa SELIC agosto/2022 - 13,75 % a.a"]
[null,null,"SELIC AGOSTO / 2022  -  Taxa de Juros Selic — Português (Brasil) (www.gov.br) ",0.13750000000000001]
[]
["**",null,"Conservação e manutenção - é calculado com o uso de um coeficiente multiplicador \"k\", conforme tabela abaixo, sobre a "]
[null,null,"depreciação mensal do equipamento (Item A da planilha de composição de preços). Os valores de K são fornecidos por"]
[null,null," fabricantes. "]
[null,null,"Metodologia conforme a bibliografia \"Como Preparar Orçamentos de Obras\", 3 edição, Aldo Dórea Mattos, 2019."]
[]
[null,null,"Preço calculado sem BDI"]
{"$rows_empty":23}
[{"$nulls":5},"https://precos.petrobras.com.br/sele%C3%A7%C3%A3o-de-estados-gasolina"]

{"sheet":"Cálculo Desembolso","index":16,"n_rows":15,"n_cols":7,"rows_kept":15,"cut":false,"hidden":true,"merged":[[0,1,0,4],[1,1,1,4]]}
[]
[null,"CÁLCULO DE DESEMBOLSO MENSAL  "]
[null,"Janeiro","--",{"$f":"'Cron Físico-Financeiro'!E9","v":0},{"$f":"D3","v":0}]
[null,"Fevereiro","--",{"$f":"'Cron Físico-Financeiro'!F9","v":0},{"$f":"D4","v":0}]
[null,"Março","--",{"$f":"D4","v":0},{"$f":"D5","v":0}]
[null,"Abril","--",0,{"$f":"D6","v":0}]
[null,"Maio","--",0,{"$f":"E6","v":0}]
[null,"Junho","--",0,0]
[null,"Julho","--",0,0]
[null,"Agosto","--",0,0]
[null,"Setembro","--",0,0]
[null,"Outubro","--",0,0,null,{"$f":"'PFS- I- Orçam Base'!L51","v":0}]
[null,"Novembro","--",0,0]
[null,"Dezembro",{"$f":"'Cron Físico-Financeiro'!D11","v":0},0]
[null,"Total",{"$f":"SUM(C14)","v":0},{"$f":"SUM(D3:D14)","v":0},{"$f":"SUM(E3:E14)","v":0}]

{"sheet":"Critérios de Pagamento","index":17,"n_rows":31,"n_cols":7,"rows_kept":31,"cut":false,"hidden":true,"merged":[[17,0,17,6],[18,0,18,1],[19,0,19,6],[30,0,30,4],[0,0,0,6],[1,0,1,6],[2,0,2,1],[3,0,3,6],[14,0,14,4]]}
["NÃO É NECESSÁRIO INSERIR COMO ANEXO DO EDITAL - TODAS AS INFORMAÇÕES NECESSÁRIAS ESTÃO EXPOSTAS NO CRONOGRAMA FÍSICO-FINANCEIRO "]
["Critérios de Pagamento"]
["DESCRIÇÃO DO SERVIÇO",null,"UNID",null,"QUANT","PERCENTUAL S/ PREÇO GLOBAL","VALOR TOTAL"]
["PROJETO"]
["P1","Assessoramento de Engenharia"]
["P1.1","Gestão de Planejamento e Projetos","Relatório","CONSULTORIA",36,0.219972,{"$f":"F6*$G$15","v":9518554.4000000004}]
["P1.2","Gestão de Desapropriação, Reassentamento e Meio Ambiente","Relatório","CONSULTORIA",36,0.22867000000000001,{"$f":"F7*$G$15","v":9894931.3300000001}]
["P1.3","Gestão de Construção","Relatório","CONSULTORIA",36,0.28267900000000001,{"$f":"F8*$G$15","v":12231990.609999999}]
["P2","Assessoramento Gerencial"]
["P2.1","Assessoria Orçamentária, Financeira e Contábil","Relatório","CONSULTORIA",36,3.7726999999999997E-2,{"$f":"F10*$G$15","v":1632510.05}]
["P2.2","Assessoria para demandas de Órgãos de Controle","Relatório","CONSULTORIA",36,5.9070999999999999E-2,{"$f":"F11*$G$15","v":2556100.44}]
["P2.3","Assessoria de Comunicação Social","Relatório","CONSULTORIA",36,4.8771000000000002E-2,{"$f":"F12*$G$15","v":2110402.31}]
["P2.4","Assessoria de Tecnologia da Informação","Relatório","CONSULTORIA",36,4.0162999999999997E-2,{"$f":"F13*$G$15","v":1737919.83}]
["P2.5","Gestão de Apoio Administrativo","Relatório","CONSULTORIA",36,8.2947000000000007E-2,{"$f":"F14*$G$15","v":3589254.69}]
["TOTAL GERAL ",{"$nulls":4},1,43271663.659999996]
[]
[]
["Critérios de Pagamento"]
["DESCRIÇÃO DO SERVIÇO",null,"UNID",null,"QUANT","PERCENTUAL S/ PREÇO GLOBAL","VALOR TOTAL"]
["PROJETO"]
["P1","Assessoramento de Engenharia"]
["P1.1","Gestão de Planejamento e Projetos","Relatório","CONSULTORIA",36,0.219972]
["P1.2","Gestão de Desapropriação, Reassentamento e Meio Ambiente","Relatório","CONSULTORIA",36,0.22867000000000001]
["P1.3","Gestão de Construção","Relatório","CONSULTORIA",36,0.28267900000000001]
["P2","Assessoramento Gerencial"]
["P2.1","Assessoria Orçamentária, Financeira e Contábil","Relatório","CONSULTORIA",36,3.7726999999999997E-2]
["P2.2","Assessoria para demandas de Órgãos de Controle","Relatório","CONSULTORIA",36,5.9070999999999999E-2]
["P2.3","Assessoria de Comunicação Social","Relatório","CONSULTORIA",36,4.8771000000000002E-2]
["P2.4","Assessoria de Tecnologia da Informação","Relatório","CONSULTORIA",36,4.0162999999999997E-2]
["P2.5","Gestão de Apoio Administrativo","Relatório","CONSULTORIA",36,8.2947000000000007E-2]
["TOTAL GERAL ",{"$nulls":4},1]

{"sheet":"Memória de cálculo","index":18,"n_rows":47,"n_cols":4,"rows_kept":47,"cut":false,"hidden":true,"merged":[[19,1,19,3],[20,1,20,3],[24,1,24,3],[31,1,31,3],[37,1,37,3],[3,1,3,3],[5,1,5,3],[6,1,6,3],[7,1,7,3],[12,1,12,3]]}
[null,null,{"$f":"'[38]PFS_VII Det_ Enc_ Soc_'!C1","v":"Ministério do Desenvolvimento Regional - MDR"}]
[null,null,"Companhia de Desenvolvimento dos Vales do São Francisco e do Parnaíba"]
[]
[null,"MEMÓRIA DE CÁLCULO"]
[]
[null,"ITEM 02: RELATÓRIO TÉCNICO DE FISCALIZAÇÃO"]
[]
[null,"PROFISSIONAIS DO APOIO POR EQUIPE"]
[null,"Profissional","Quantidade","Unidade"]
[null,"Engenheiro",6,"coordenador"]
[null,"Técnico de campo",30,"técnico(s)"]
[]
[null,"EQUIPAMENTOS UTILIZADOS POR EQUIPE"]
[null,"Item","Quantidade","Unidade"]
[null,"Veículo",1,"unidade(s)"]
[null,"Notebook",1,"unidade(s)"]
[null,"GPS",1,"unidade(s)"]
[null,"Plano celular",1,"unidade(s)"]
[]
[null,"APROPRIAÇÃO DO SERVIÇO DE VISTORIA TÉCNICA POR DIA"]
[null,"Do Coordenador"]
[null,"Serviço","Quantidade","Unidade"]
[null,"Relatório",1.5,"horas"]
[null,"Total",{"$f":"SUM(C23:C23)","v":1.5},"horas técnicas por vistória"]
[null,"Da equipe de campo"]
[null,"Serviço","Quantidade","Unidade"]
[null,"Vistoria de campo",5.5,"horas"]
[null,"Deslocamento/Alimentação",2.5,"horas"]
[null,"Relatório",2.5,"horas"]
[null,"Total",{"$f":"SUM(C27:C29)","v":10.5},"horas técnicas por vistória"]
[]
[null,"PRODUTIVIDADE DA EQUIPE POR DIA DE TRABALHO"]
[null,"Item","Quantidade","Unidade"]
[null,"Quantidade de vias vistoriadas por dia pela equipe A2",10,"vias"]
[null,"Quantidade de vias vistoriadas por dia pela equipe A1",5,"vias"]
[]
[]
[null,"APROPRIAÇÃO DE CADA ITEM POR RELATÓRIO TÉCNICO PRODUZIDO"]
[null,"Item","Quantidade","Unidade"]
[null,"Coordenador",{"$f":"(C10*C23/C34/176)","v":5.11E-3},"meses por relatório técnico"]
[null,"Técnico de campo",{"$f":"(C11*C30/C34/176)","v":0.17898},"meses por relatório técnico"]
[null,"Veículo",{"$f":"(C15/C34/30)","v":3.3300000000000001E-3},"meses por relatório técnico"]
[null,"Notebook",{"$f":"(C16/C34/30)","v":3.3300000000000001E-3},"meses por relatório técnico"]
[null,"GPS",{"$f":"(C17/C34/30)","v":3.3300000000000001E-3},"meses por relatório técnico"]
[null,"Plano celular",{"$f":"(C18/C34/30)","v":3.3300000000000001E-3},"meses por relatório técnico"]
[null,"Diária de campo A1",{"$f":"C10/C35","v":1.2},"diárias por relatório técnico"]
[null,"Diária de campo A2",{"$f":"C11/C34","v":3},"diárias por relatório técnico"]

{"sheet":"Tabela de veículos","index":19,"n_rows":20,"n_cols":7,"rows_kept":20,"cut":false,"hidden":true,"merged":[[20,0,20,6],[3,0,4,0],[0,0,0,7],[1,0,1,6],[2,0,2,6],[3,1,3,2],[3,3,3,4],[3,5,3,6]]}
["MINISTÉRIO DA INTEGRAÇÃO NACIONAL\nCOMPANHIA DE DESENVOLVIMENTO DOS VALES DO SÃO FRANCISCO E DO PARNAÍBA"]
["TABELA DE VEÍCULOS - 3ª/SR/Petrolina - PE"]
["DATA:         fevereiro-20"]
["DESCRIÇÃO DO VEÍCULO","CUSTO MENSAL (R$)",null,"CUSTO DIRETO P/KM\nRODADO (R$)",null,"PREÇO COBRADO PELA EMPRESA (BDI=20,32%) (R$)"]
[null,"S/ MOTORISTA","C/ MOTORISTA","S/ MOTORISTA","C/ MOTORISTA","S/ MOTORISTA","C/ MOTORISTA"]
["MOTOS"]
["(B1) CG 160 CARGO",1271.24,5489.42,0.42,1.83,1529.56,6604.88]
["VEÍCULOS LEVES"]
["(B2) Gol 1.0 T. Flex 12V 5p",3012.04,7230.22,1,2.41,3624.09,8699.41]
["(B3) UNO WAY 1.3 Flex 8V 5p",3251.84,7470.02,1.08,2.4900000000000002,3912.62,8987.93]
["(B4) Nissan Versa S 1.6 16V FlexStart 4p Mec.",3437.28,7655.46,1.1499999999999999,2.5499999999999998,4135.74,9211.0499999999993]
["UTILITÁRIOS"]
["(B5) Doblo ESSENCE 1.8 Flex 16V 5p",4636.0200000000004,8854.2000000000007,1.55,2.95,5578.06,10653.37]
["(B6) Sprinter 415 VAN Standard T.B. 2.2 Dies.",7150.44,11368.62,2.38,3.79,8603.41,13678.72]
["(B7) Microônibus VOLARE FRETAMENTO V8L LONGO (diesel)(E5)",9931.9,14150.08,3.31,4.72,11950.06,17025.38]
["(B8) Ônibus Urbano Marcopolo Viale (45 lug) (218 cv)",11906.03,16124.21,3.97,5.37,14325.33,19400.650000000001]
["PICK-UP"]
["(B9) Saveiro Robust 1.6 Total Flex 8V",3301.7,7519.88,1.1000000000000001,2.5099999999999998,3972.61,9047.92]
["(B10) Hilux CS 4x4 2.8 TDI Diesel Mec.",5893.43,10111.61,1.96,3.37,7090.98,12166.29]
["(B11) Hilux CD 4x4 2.8 Diesel Mec.",{"$f":"#REF!","v":{"$error":"#REF!"}},10692.44,2.16,3.56,7789.84,12865.15]